{"text_format":"1","workbook":"xlsx","n_sheets":6,"sheets":["Data","Countries","First_Names","Gen_Corr_Target_Corr","Gen_Corr_Input_Series","Gen_Corr_Output_Series"],"not_rendered":{"charts":0,"images":0,"macros":1,"external_links":0,"defined_names":2,"comments":0,"pivot_tables":0},"unopened":[],"bounds":{"document_bytes":16777216,"sheet_cells":100000,"rows_first":2000,"rows_last":500,"rows_between":2000,"halvings":0,"cell_chars":16384,"cell_head_chars":4096},"cells_cut":0,"cells_raw":0,"read":"whole","date_system":"1900"}

{"sheet":"Data","index":0,"n_rows":70,"n_cols":10,"rows_kept":70,"cut":false,"hidden":false,"merged":[]}
["Test Input 1","Test Input 2","Test Result","Correct Result"," ","Test Data Generator",null,"Input 1","Input 2","Explanation"]
[20,"Malaysia","Test formulas go here","Cross check formulas"," "]
[277,"Cambodia",null,null," ","Number of test records",null,25,20]
[22,"United Arab Emirates",null,null," ","Shuffle after generation",null,true,false,"Perform a random shuffle after data generation"]
[20,"Kuwait",null,null," ","Data type"]
[20,"Timor-Leste",null,null," ","Boolean",null,null,null,"Weight across data types"]
[29,"Montenegro",null,null," ",null,"True",1,1,"Weight within Boolean data type"]
[20,"Norway",null,null," ",null,"False",1,1,"Weight within Boolean data type"]
[20,"Romania",null,null," ","Currency",null,null,null,"Weight across data types"]
[20,"Russian Federation",null,null," ",null,"Min",10,null,"Choose either Min and Max ..."]
[20,"Albania",null,null," ",null,"Max",20]
[20,"Spain",null,null," ",null,"Avg",null,6,"... or Avg and StDev"]
[20,"Denmark",null,null," ",null,"StDev",null,2]
[27,"Bosnia and Herzegovina",null,null," ","Date",null,null,null,"Weight across data types"]
[21,"Greece",null,null," ",null,"Min","2000-01-01",null,"Choose either Min and Max ..."]
[20,"Belarus",null,null," ",null,"Max","2013-01-01"]
[20,"Egypt",null,null," ",null,"Avg",null,"2022-01-25","... or Avg and StDev"]
[21,"Swaziland",null,null," ",null,"StDev",null,180]
[20,"Tunisia",null,null," ","Decimal",null,null,null,"Weight across data types"]
[20,"Guinea-Bissau",null,null," ",null,"Min",null,null,"Choose either Min and Max ..."]
[20,"Morocco",null,null," ",null,"Max"]
[214,null,null,null," ",null,"Avg",5,100,"... or Avg and StDev"]
[49,null,null,null," ",null,"StDev",5,50]
[20,null,null,null," ","Double",null,null,null,"Weight across data types"]
[20,null,null,null," ",null,"Min",null,null,"Choose either Min and Max ..."]
[20,null,null,null," ",null,"Max"]
[null,null,null,null," ",null,"Avg",5,100,"... or Avg and StDev"]
[null,null,null,null," ",null,"StDev",1,50]
[null,null,null,null," ","Long",null,1,null,"Weight across data types"]
[null,null,null,null,null,null,"Sum",1000,1000,"Choose either Sum of integers ..."]
[null,null,null,null,null,null,"Min",20,20,"of this minimal value"]
[null,null,null,null," ",null,"Min",null,null,"... or Min, Max and MaxRepeat"]
[null,null,null,null," ",null,"Max",6,6]
[null,null,null,null," ",null,"MaxRepeat",1,1,"1 = Unique numbers, [empty] = any"]
[null,null,null,null," ","String",null,null,1,"Weight across data types"]
[null,null,null,null," ",null,"Length",null,null,"Either a simple string ..."]
[null,null,null,null," ",null,"Min","A","a","\"A\" or \"a\""]
[null,null,null,null," ",null,"Max","Z","z","\"Z\" or \"z\""]
[null,null,null,null," ",null,"NextTabRepeat",null,null,"... or an item from next tab ... First define how often each item might occur"]
[null,null,null,null," ",null,"NextTabColumn",1,1,"Column of items in next tab"]
[null,null,null,null," ",null,"NextTabItemRepeat",1,1,"... or an item from weighted item groups"]
[null,null,null,null," ",null,"NextTabItemColumn",1,1,"Column of items in next tab"]
[null,null,null,null," ",null,"NextTabGroupColumn",2,2,"Column of item groups in next tab"]
[null,null,null,null," ",null,"Asia",null,1,"List item groups on the left and then their weights"]
[null,null,null,null," ",null,"Europe",1,2]
[null,null,null,null," ",null,"Africa",null,1]
[null,null,null,null," ",null,"Oceania"]
[null,null,null,null," ",null,"North America"]
[null,null,null,null," ",null,"Antarctica"]
[null,null,null,null," ",null,"South America"]
[null,null,null,null," "]
[null,null,null,null," "]
[null,null,null,null," "]
[null,null,null,null," "]
[null,null,null,null," "]
[null,null,null,null," "]
[null,null,null,null," "]
[null,null,null,null," "]
[null,null,null,null," "]
[null,null,null,null," "]
[null,null,null,null," "]
[null,null,null,null," "]
[null,null,null,null," "]
[null,null,null,null," "]
[null,null,null,null," "]
[null,null,null,null," "]
[null,null,null,null," "]
[null,null,null,null," "]
[null,null,null,null," "]
[null,null,null,null," "]

{"sheet":"Countries","index":1,"n_rows":250,"n_cols":4,"rows_kept":250,"cut":false,"hidden":false,"merged":[]}
["Country Name","Continent Name","Source:","https://raw.github.com/wikimedia/limn-data/master/geo/country-codes.csv"]
["Afghanistan","Asia"]
["Åland","Europe"]
["Albania","Europe"]
["Algeria","Africa"]
["American Samoa","Oceania"]
["Andorra","Europe"]
["Angola","Africa"]
["Anguilla","North America"]
["Antarctica","Antarctica"]
["Antigua and Barbuda","North America"]
["Argentina","South America"]
["Armenia","Asia"]
["Aruba","North America"]
["Australia","Oceania"]
["Austria","Europe"]
["Azerbaijan","Asia"]
["Bahamas","North America"]
["Bahrain","Asia"]
["Bangladesh","Asia"]
["Barbados","North America"]
["Belarus","Europe"]
["Belgium","Europe"]
["Belize","North America"]
["Benin","Africa"]
["Bermuda","North America"]
["Bhutan","Asia"]
["Bolivia","South America"]
["Bonaire, Sint Eustatiusand Saba","North America"]
["Bosnia and Herzegovina","Europe"]
["Botswana","Africa"]
["Bouvet Island","Antarctica"]
["Brazil","South America"]
["British Indian Ocean Territory","Asia"]
["Brunei Darussalam","Asia"]
["Bulgaria","Europe"]
["Burkina Faso","Africa"]
["Burundi","Africa"]
["Cambodia","Asia"]
["Cameroon","Africa"]
["Canada","North America"]
["Cape Verde","Africa"]
["Cayman Islands","North America"]
["Central African Republic","Africa"]
["Chad","Africa"]
["Chile","South America"]
["China","Asia"]
["Christmas Island","Asia"]
["Cocos (Keeling) Islands","Asia"]
["Colombia","South America"]
["Comoros","Africa"]
["Congo (Brazzaville)","Africa"]
["Congo (Kinshasa)","Africa"]
["Cook Islands","Oceania"]
["Costa Rica","North America"]
["Côte d'Ivoire","Africa"]
["Croatia","Europe"]
["Cuba","North America"]
["Curaçao","North America"]
["Cyprus","Asia"]
["Czech Republic","Europe"]
["Denmark","Europe"]
["Djibouti","Africa"]
["Dominica","North America"]
["Dominican Republic","North America"]
["Ecuador","South America"]
["Egypt","Africa"]
["El Salvador","North America"]
["Equatorial Guinea","Africa"]
["Eritrea","Africa"]
["Estonia","Europe"]
["Ethiopia","Africa"]
["Falkland Islands","South America"]
["Faroe Islands","Europe"]
["Fiji","Oceania"]
["Finland","Europe"]
["France","Europe"]
["French Guiana","South America"]
["French Polynesia","Oceania"]
["French Southern Lands","Antarctica"]
["Gabon","Africa"]
["Gambia","Africa"]
["Georgia","Asia"]
["Germany","Europe"]
["Ghana","Africa"]
["Gibraltar","Europe"]
["Greece","Europe"]
["Greenland","North America"]
["Grenada","North America"]
["Guadeloupe","North America"]
["Guam","Oceania"]
["Guatemala","North America"]
["Guernsey","Europe"]
["Guinea","Africa"]
["Guinea-Bissau","Africa"]
["Guyana","South America"]
["Haiti","North America"]
["Heard and McDonald Islands","Antarctica"]
["Honduras","North America"]
["Hong Kong","Asia"]
["Hungary","Europe"]
["Iceland","Europe"]
["India","Asia"]
["Indonesia","Asia"]
["Iran","Asia"]
["Iraq","Asia"]
["Ireland","Europe"]
["Isle of Man","Europe"]
["Israel","Asia"]
["Italy","Europe"]
["Jamaica","North America"]
["Japan","Asia"]
["Jersey","Europe"]
["Jordan","Asia"]
["Kazakhstan","Asia"]
["Kenya","Africa"]
["Kiribati","Oceania"]
["Korea, North","Asia"]
["Korea, South","Asia"]
["Kuwait","Asia"]
["Kyrgyzstan","Asia"]
["Laos","Asia"]
["Latvia","Europe"]
["Lebanon","Asia"]
["Lesotho","Africa"]
["Liberia","Africa"]
["Libya","Africa"]
["Liechtenstein","Europe"]
["Lithuania","Europe"]
["Luxembourg","Europe"]
["Macau","Asia"]
["Macedonia","Europe"]
["Madagascar","Africa"]
["Malawi","Africa"]
["Malaysia","Asia"]
["Maldives","Asia"]
["Mali","Africa"]
["Malta","Europe"]
["Marshall Islands","Oceania"]
["Martinique","North America"]
["Mauritania","Africa"]
["Mauritius","Africa"]
["Mayotte","Africa"]
["Mexico","North America"]
["Micronesia","Oceania"]
["Moldova","Europe"]
["Monaco","Europe"]
["Mongolia","Asia"]
["Montenegro","Europe"]
["Montserrat","North America"]
["Morocco","Africa"]
["Mozambique","Africa"]
["Myanmar","Asia"]
["Namibia","Africa"]
["Nauru","Oceania"]
["Nepal","Asia"]
["Netherlands","Europe"]
["New Caledonia","Oceania"]
["New Zealand","Oceania"]
["Nicaragua","North America"]
["Niger","Africa"]
["Nigeria","Africa"]
["Niue","Oceania"]
["Norfolk Island","Oceania"]
["Northern Mariana Islands","Oceania"]
["Norway","Europe"]
["Oman","Asia"]
["Pakistan","Asia"]
["Palau","Oceania"]
["Palestine","Asia"]
["Panama","North America"]
["Papua New Guinea","Oceania"]
["Paraguay","South America"]
["Peru","South America"]
["Philippines","Asia"]
["Pitcairn","Oceania"]
["Poland","Europe"]
["Portugal","Europe"]
["Puerto Rico","North America"]
["Qatar","Asia"]
["Reunion","Africa"]
["Romania","Europe"]
["Russian Federation","Europe"]
["Rwanda","Africa"]
["Saint Barthélemy","North America"]
["Saint Helena","Africa"]
["Saint Kitts and Nevis","North America"]
["Saint Lucia","North America"]
["Saint Martin (French part)","North America"]
["Saint Pierre and Miquelon","North America"]
["Saint Vincent and the Grenadines","North America"]
["Samoa","Oceania"]
["San Marino","Europe"]
["Sao Tome and Principe","Africa"]
["Saudi Arabia","Asia"]
["Senegal","Africa"]
["Serbia","Europe"]
["Seychelles","Africa"]
["Sierra Leone","Africa"]
["Singapore","Asia"]
["Sint Maarten","North America"]
["Slovakia","Europe"]
["Slovenia","Europe"]
["Solomon Islands","Oceania"]
["Somalia","Africa"]
["South Africa","Africa"]
["South Georgia and South Sandwich Islands","Antarctica"]
["South Sudan","Africa"]
["Spain","Europe"]
["Sri Lanka","Asia"]
["Sudan","Africa"]
["Suriname","South America"]
["Svalbard and Jan Mayen Islands","Europe"]
["Swaziland","Africa"]
["Sweden","Europe"]
["Switzerland","Europe"]
["Syria","Asia"]
["Taiwan","Asia"]
["Tajikistan","Asia"]
["Tanzania","Africa"]
["Thailand","Asia"]
["Timor-Leste","Asia"]
["Togo","Africa"]
["Tokelau","Oceania"]
["Tonga","Oceania"]
["Trinidad and Tobago","North America"]
["Tunisia","Africa"]
["Turkey","Asia"]
["Turkmenistan","Asia"]
["Turks and Caicos Islands","North America"]
["Tuvalu","Oceania"]
["Uganda","Africa"]
["Ukraine","Europe"]
["United Arab Emirates","Asia"]
["United Kingdom","Europe"]
["United States Minor Outlying Islands","Oceania"]
["United States of America","North America"]
["Uruguay","South America"]
["Uzbekistan","Asia"]
["Vanuatu","Oceania"]
["Vatican City","Europe"]
["Venezuela","South America"]
["Vietnam","Asia"]
["Virgin Islands, British","North America"]
["Virgin Islands, U.S.","North America"]
["Wallis and Futuna Islands","Oceania"]
["Western Sahara","Africa"]
["Yemen","Asia"]
["Zambia","Africa"]
["Zimbabwe","Africa"]

{"sheet":"First_Names","index":2,"n_rows":4954,"n_cols":4,"rows_kept":4954,"cut":false,"hidden":false,"merged":[]}
["Name","Gender","Source: ","https://www2.gov.bc.ca/assets/gov/birth-adoption-death-marriage-and-divorce/statistics-reports/baby-names-trends-f-2023.csv"]
["AADHYA","F",null,"https://www2.gov.bc.ca/assets/gov/birth-adoption-death-marriage-and-divorce/statistics-reports/baby-names-trends-m-2023.csv"]
["AADYA","F"]
["AAHANA","F"]
["AALIYAH","F"]
["AANYA","F"]
["AARNA","F"]
["AARYA","F"]
["AARZA","F"]
["AASHVI","F"]
["ABBEY","F"]
["ABBIE","F"]
["ABBIGAIL","F"]
["ABBY","F"]
["ABBYGAIL","F"]
["ABIGAIL","F"]
["ABIGALE","F"]
["ABIGAYLE","F"]
["ABRIELLE","F"]
["ACACIA","F"]
["ADA","F"]
["ADALINE","F"]
["ADALYN","F"]
["ADALYNN","F"]
["ADDILYN","F"]
["ADDISON","F"]
["ADDISYN","F"]
["ADDYSON","F"]
["ADELA","F"]
["ADELAIDE","F"]
["ADELE","F"]
["ADELINA","F"]
["ADELINE","F"]
["ADELLE","F"]
["ADELYN","F"]
["ADELYNN","F"]
["ADIA","F"]
["ADINA","F"]
["ADISON","F"]
["ADLEY","F"]
["ADRIA","F"]
["ADRIANA","F"]
["ADRIANNA","F"]
["ADRIANNE","F"]
["ADRIENNE","F"]
["AGATHA","F"]
["AGNES","F"]
["AIDA","F"]
["AIDAN","F"]
["AIKAM","F"]
["AIKO","F"]
["AILA","F"]
["AILEEN","F"]
["AILISH","F"]
["AIMEE","F"]
["AINSLEY","F"]
["AIRA","F"]
["AISHA","F"]
["AISLINN","F"]
["AISLYNN","F"]
["AITANA","F"]
["AIYANA","F"]
["AIYANNA","F"]
["AIYLA","F"]
["AIZA","F"]
["AJA","F"]
["AJOONI","F"]
["AJUNI","F"]
["AKASHA","F"]
["AKEMI","F"]
["AKIKO","F"]
["AKIRA","F"]
["ALAIA","F"]
["ALAINA","F"]
["ALANA","F"]
["ALANAH","F"]
["ALANNA","F"]
["ALANNAH","F"]
["ALARA","F"]
["ALAYA","F"]
["ALAYNA","F"]
["ALBA","F"]
["ALBERTA","F"]
["ALEAH","F"]
["ALECIA","F"]
["ALEENA","F"]
["ALEESHA","F"]
["ALEISHA","F"]
["ALENA","F"]
["ALESHA","F"]
["ALESSANDRA","F"]
["ALESSI","F"]
["ALESSIA","F"]
["ALETA","F"]
["ALETHEA","F"]
["ALEX","F"]
["ALEXA","F"]
["ALEXANDRA","F"]
["ALEXANDREA","F"]
["ALEXANDRIA","F"]
["ALEXIA","F"]
["ALEXIS","F"]
["ALEXUS","F"]
["ALI","F"]
["ALIA","F"]
["ALIANA","F"]
["ALICE","F"]
["ALICIA","F"]
["ALIDA","F"]
["ALIESHA","F"]
["ALINA","F"]
["ALISA","F"]
["ALISHA","F"]
["ALISON","F"]
["ALISSA","F"]
["ALITA","F"]
["ALIVIA","F"]
["ALIX","F"]
["ALIYA","F"]
["ALIYAH","F"]
["ALIZA","F"]
["ALLEGRA","F"]
["ALLIE","F"]
["ALLISON","F"]
["ALLY","F"]
["ALLYSA","F"]
["ALLYSHA","F"]
["ALLYSON","F"]
["ALLYSSA","F"]
["ALMA","F"]
["ALORA","F"]
["ALTHEA","F"]
["ALYCIA","F"]
["ALYSA","F"]
["ALYSE","F"]
["ALYSHA","F"]
["ALYSHIA","F"]
["ALYSIA","F"]
["ALYSON","F"]
["ALYSSA","F"]
["ALYSSIA","F"]
["ALYVIA","F"]
["AMAANAT","F"]
["AMAIA","F"]
["AMAIRA","F"]
["AMALIA","F"]
["AMAN","F"]
["AMANAT","F"]
["AMANDA","F"]
["AMANDA-LEE","F"]
["AMANDEEP","F"]
["AMANJOT","F"]
["AMANPREET","F"]
["AMARA","F"]
["AMARAH","F"]
["AMARI","F"]
["AMARIS","F"]
["AMARJIT","F"]
["AMARPREET","F"]
["AMAYA","F"]
["AMAYAH","F"]
["AMAYRA","F"]
["AMBER","F"]
["AMBERLY","F"]
["AMEERA","F"]
["AMELIA","F"]
["AMELIE","F"]
["AMI","F"]
["AMIE","F"]
["AMILA","F"]
["AMINA","F"]
["AMIRA","F"]
["AMIRAH","F"]
["AMISHA","F"]
["AMIYAH","F"]
["AMNEET","F"]
["AMREEN","F"]
["AMRIT","F"]
["AMRITA","F"]
["AMY","F"]
["AMYRA","F"]
["AMÉLIE","F"]
["ANA","F"]
["ANABELLE","F"]
["ANABIA","F"]
["ANAHAT","F"]
["ANAISHA","F"]
["ANAIYA","F"]
["ANANT","F"]
["ANASTASIA","F"]
["ANAYA","F"]
["ANAYAH","F"]
["ANAYAT","F"]
["ANAÏS","F"]
["ANDI","F"]
["ANDIE","F"]
["ANDREA","F"]
["ANDRIA","F"]
["ANEET","F"]
["ANGEL","F"]
["ANGELA","F"]
["ANGELENE","F"]
["ANGELICA","F"]
["ANGELINA","F"]
["ANGELINE","F"]
["ANGELIQUE","F"]
["ANGIE","F"]
["ANHAD","F"]
["ANICA","F"]
["ANIKA","F"]
["ANISA","F"]
["ANISHA","F"]
["ANITA","F"]
["ANIYA","F"]
["ANIYAH","F"]
["ANJA","F"]
["ANJALI","F"]
["ANMOL","F"]
["ANN","F"]
["ANN-MARIE","F"]
["ANNA","F"]
["ANNA-MARIE","F"]
["ANNABEL","F"]
["ANNABELLA","F"]
["ANNABELLE","F"]
["ANNALISE","F"]
["ANNAMARIE","F"]
["ANNE","F"]
["ANNE-MARIE","F"]
["ANNEKE","F"]
["ANNELIESE","F"]
["ANNELISE","F"]
["ANNETTE","F"]
["ANNIE","F"]
["ANNIKA","F"]
["ANOUK","F"]
["ANTHEA","F"]
["ANTOINETTE","F"]
["ANTONELLA","F"]
["ANTONIA","F"]
["ANTONIETTA","F"]
["ANUREET","F"]
["ANYA","F"]
["AOIFE","F"]
["APRIL","F"]
["ARA","F"]
["ARABELLA","F"]
["ARAYA","F"]
["ARDEN","F"]
["ARI","F"]
["ARIA","F"]
["ARIADNE","F"]
["ARIAH","F"]
["ARIANA","F"]
["ARIANNA","F"]
["ARIANNE","F"]
["ARIEL","F"]
["ARIELLA","F"]
["ARIELLE","F"]
["ARIN","F"]
["ARINA","F"]
["ARIYA","F"]
["ARIYAH","F"]
["ARLEEN","F"]
["ARLENE","F"]
["ARLINE","F"]
["ARLO","F"]
["ARNAAZ","F"]
["ARSHPREET","F"]
["ARTEMIS","F"]
["ARWEN","F"]
["ARYA","F"]
["ARYANA","F"]
["ARYANNA","F"]
["ARZOE","F"]
["ARZOI","F"]
["ARZOIE","F"]
["ARZOYI","F"]
["ASAKO","F"]
["ASEEL","F"]
["ASEES","F"]
["ASHA","F"]
["ASHANTI","F"]
["ASHLEA","F"]
["ASHLEE","F"]
["ASHLEEN","F"]
["ASHLEIGH","F"]
["ASHLEY","F"]
["ASHLIE","F"]
["ASHLIN","F"]
["ASHLY","F"]
["ASHLYN","F"]
["ASHLYNN","F"]
["ASHTON","F"]
["ASIA","F"]
["ASPEN","F"]
["ASPYN","F"]
["ASTRID","F"]
["ATHENA","F"]
["AUBREE","F"]
["AUBREY","F"]
["AUBRIE","F"]
["AUDRA","F"]
["AUDREY","F"]
["AUDRINA","F"]
["AUDRY","F"]
["AUGUST","F"]
["AURA","F"]
["AURELIA","F"]
["AURORA","F"]
["AUSTIN","F"]
["AUSTYN","F"]
["AUTUMN","F"]
["AVA","F"]
["AVA-MARIE","F"]
["AVAANI","F"]
["AVAH","F"]
["AVALON","F"]
["AVALYN","F"]
["AVALYNN","F"]
["AVANI","F"]
["AVARY","F"]
["AVAYA","F"]
["AVEERA","F"]
["AVELINE","F"]
["AVELYN","F"]
["AVEN","F"]
["AVERI","F"]
["AVERIE","F"]
["AVERY","F"]
["AVIA","F"]
["AVIANA","F"]
["AVIANNA","F"]
["AVIRA","F"]
["AVLEEN","F"]
["AVNEET","F"]
["AVNI","F"]
["AVNOOR","F"]
["AVREEN","F"]
["AVREET","F"]
["AVRIL","F"]
["AVYANNA","F"]
["AYA","F"]
["AYAH","F"]
["AYAKO","F"]
["AYANA","F"]
["AYANNA","F"]
["AYAT","F"]
["AYDA","F"]
["AYDEN","F"]
["AYESHA","F"]
["AYLA","F"]
["AYLIN","F"]
["AYNSLEY","F"]
["AYRA","F"]
["AYSHA","F"]
["AYVA","F"]
["AYZAL","F"]
["AYZEL","F"]
["AZALEA","F"]
["BAANI","F"]
["BAILEE","F"]
["BAILEY","F"]
["BALJINDER","F"]
["BALJIT","F"]
["BANI","F"]
["BARBARA","F"]
["BARBARA-ANN","F"]
["BARBRA","F"]
["BARKAT","F"]
["BAYLEE","F"]
["BEATRICE","F"]
["BEATRIX","F"]
["BECKY","F"]
["BELINDA","F"]
["BELLA","F"]
["BELLE","F"]
["BENITA","F"]
["BENTLEY","F"]
["BERKLEY","F"]
["BERNADETTE","F"]
["BERNADINE","F"]
["BERNICE","F"]
["BERTHA","F"]
["BERYL","F"]
["BESSIE","F"]
["BETH","F"]
["BETHANY","F"]
["BETTE","F"]
["BETTINA","F"]
["BETTY","F"]
["BETTY-LOU","F"]
["BEVERLEY","F"]
["BEVERLY","F"]
["BEXLEY","F"]
["BIANCA","F"]
["BILLIE","F"]
["BIRGIT","F"]
["BLAIR","F"]
["BLAIRE","F"]
["BLAKE","F"]
["BLAKELY","F"]
["BLANCHE","F"]
["BLAYKE","F"]
["BLYTHE","F"]
["BOBBI","F"]
["BOBBI-JO","F"]
["BOBBIE","F"]
["BONITA","F"]
["BONNIE","F"]
["BONNY","F"]
["BOWEN","F"]
["BOWIE","F"]
["BRADLEY","F"]
["BRAELYN","F"]
["BRAELYNN","F"]
["BRANDEE","F"]
["BRANDI","F"]
["BRANDIE","F"]
["BRANDY","F"]
["BREA","F"]
["BREANN","F"]
["BREANNA","F"]
["BREANNE","F"]
["BREE","F"]
["BRENDA","F"]
["BRENDA-LEE","F"]
["BRENNA","F"]
["BRETT","F"]
["BRIA","F"]
["BRIANA","F"]
["BRIANNA","F"]
["BRIANNE","F"]
["BRIAR","F"]
["BRIDGET","F"]
["BRIE","F"]
["BRIEANNA","F"]
["BRIEANNE","F"]
["BRIELLA","F"]
["BRIELLE","F"]
["BRIGETTE","F"]
["BRIGITTE","F"]
["BRINLEY","F"]
["BRITANY","F"]
["BRITNEY","F"]
["BRITT","F"]
["BRITTANEY","F"]
["BRITTANI","F"]
["BRITTANIE","F"]
["BRITTANY","F"]
["BRITTNEY","F"]
["BRITTNI","F"]
["BRITTNY","F"]
["BRONTE","F"]
["BRONWEN","F"]
["BRONWYN","F"]
["BROOK","F"]
["BROOKE","F"]
["BROOKE-LYNN","F"]
["BROOKLYN","F"]
["BROOKLYNN","F"]
["BROOKLYNNE","F"]
["BRYANNA","F"]
["BRYANNE","F"]
["BRYN","F"]
["BRYNLEE","F"]
["BRYNLEIGH","F"]
["BRYNLEY","F"]
["BRYNN","F"]
["BRYNNA","F"]
["BRYNNE","F"]
["BUFFY","F"]
["CADENCE","F"]
["CAILIN","F"]
["CAILYN","F"]
["CAITLIN","F"]
["CAITLYN","F"]
["CAITLYNN","F"]
["CALEIGH","F"]
["CALEY","F"]
["CALI","F"]
["CALISTA","F"]
["CALLA","F"]
["CALLEIGH","F"]
["CALLI","F"]
["CALLIA","F"]
["CALLIE","F"]
["CALLIOPE","F"]
["CALLISTA","F"]
["CAMERON","F"]
["CAMILA","F"]
["CAMILLA","F"]
["CAMILLE","F"]
["CAMRYN","F"]
["CANDACE","F"]
["CANDICE","F"]
["CANDIS","F"]
["CANDY","F"]
["CAPRI","F"]
["CARA","F"]
["CAREN","F"]
["CAREY","F"]
["CARI","F"]
["CARIN","F"]
["CARINA","F"]
["CARIS","F"]
["CARISSA","F"]
["CARLA","F"]
["CARLEE","F"]
["CARLEEN","F"]
["CARLEIGH","F"]
["CARLENE","F"]
["CARLEY","F"]
["CARLI","F"]
["CARLIE","F"]
["CARLING","F"]
["CARLY","F"]
["CARMEL","F"]
["CARMELA","F"]
["CARMEN","F"]
["CAROL","F"]
["CAROL-ANN","F"]
["CAROLE","F"]
["CAROLIN","F"]
["CAROLINA","F"]
["CAROLINE","F"]
["CAROLL","F"]
["CAROLYN","F"]
["CAROLYNE","F"]
["CAROLYNN","F"]
["CAROLYNNE","F"]
["CARRIE","F"]
["CARRIE-ANN","F"]
["CARROL","F"]
["CARROLL","F"]
["CARSON","F"]
["CARTER","F"]
["CARYN","F"]
["CARYS","F"]
["CASANDRA","F"]
["CASEY","F"]
["CASSANDRA","F"]
["CASSIA","F"]
["CASSIDY","F"]
["CASSIE","F"]
["CATALEYA","F"]
["CATALINA","F"]
["CATE","F"]
["CATERINA","F"]
["CATHARINA","F"]
["CATHARINE","F"]
["CATHERINE","F"]
["CATHIE","F"]
["CATHLEEN","F"]
["CATHRINE","F"]
["CATHRYN","F"]
["CATHY","F"]
["CATRINA","F"]
["CATRIONA","F"]
["CAYDENCE","F"]
["CAYLA","F"]
["CAYLEE","F"]
["CAYLEIGH","F"]
["CAYLEY","F"]
["CEARA","F"]
["CECELIA","F"]
["CECILE","F"]
["CECILIA","F"]
["CECILY","F"]
["CEDAR","F"]
["CELESTE","F"]
["CELIA","F"]
["CELINA","F"]
["CELINE","F"]
["CHANDRA","F"]
["CHANEL","F"]
["CHANELLE","F"]
["CHANTAL","F"]
["CHANTALE","F"]
["CHANTEL","F"]
["CHANTELL","F"]
["CHANTELLE","F"]
["CHARIS","F"]
["CHARISSA","F"]
["CHARISSE","F"]
["CHARITY","F"]
["CHARLA","F"]
["CHARLEE","F"]
["CHARLEEN","F"]
["CHARLEIGH","F"]
["CHARLENE","F"]
["CHARLEY","F"]
["CHARLI","F"]
["CHARLIE","F"]
["CHARLISE","F"]
["CHARLIZE","F"]
["CHARLOTTE","F"]
["CHARMAINE","F"]
["CHELSEA","F"]
["CHELSEY","F"]
["CHELSIE","F"]
["CHELSY","F"]
["CHERI","F"]
["CHERIE","F"]
["CHERISE","F"]
["CHERISH","F"]
["CHERYL","F"]
["CHERYL-ANN","F"]
["CHERYLE","F"]
["CHEYANNE","F"]
["CHEYENNE","F"]
["CHIARA","F"]
["CHIZUKO","F"]
["CHLOE","F"]
["CHLOÉ","F"]
["CHLOË","F"]
["CHRISSY","F"]
["CHRISTA","F"]
["CHRISTAL","F"]
["CHRISTEL","F"]
["CHRISTI","F"]
["CHRISTIANA","F"]
["CHRISTIE","F"]
["CHRISTIN","F"]
["CHRISTINA","F"]
["CHRISTINE","F"]
["CHRISTY","F"]
["CHRYSTAL","F"]
["CIANNA","F"]
["CIARA","F"]
["CIENNA","F"]
["CIERA","F"]
["CIERRA","F"]
["CINDY","F"]
["CINDY-LOU","F"]
["CLAIRA","F"]
["CLAIRE","F"]
["CLARA","F"]
["CLARE","F"]
["CLARICE","F"]
["CLARISSA","F"]
["CLAUDETTE","F"]
["CLAUDIA","F"]
["CLEMENTINE","F"]
["CLEO","F"]
["CLOE","F"]
["CLOVER","F"]
["COCO","F"]
["CODI","F"]
["COLBY","F"]
["COLEEN","F"]
["COLETTE","F"]
["COLLEEN","F"]
["COLLETTE","F"]
["COLLINS","F"]
["CONNIE","F"]
["CONSTANCE","F"]
["COOPER","F"]
["CORA","F"]
["CORAL","F"]
["CORALEE","F"]
["CORALIE","F"]
["CORALINE","F"]
["CORDELIA","F"]
["COREEN","F"]
["CORENE","F"]
["COREY","F"]
["CORI","F"]
["CORINA","F"]
["CORINNA","F"]
["CORINNE","F"]
["CORNELIA","F"]
["CORRIE","F"]
["CORRINA","F"]
["CORRINE","F"]
["CORRY","F"]
["CORTNEY","F"]
["CORY","F"]
["COURTENAY","F"]
["COURTENEY","F"]
["COURTNAY","F"]
["COURTNEY","F"]
["COVE","F"]
["CRISTIN","F"]
["CRISTINA","F"]
["CRISTINE","F"]
["CRYSTAL","F"]
["CYDNEY","F"]
["CYNTHIA","F"]
["CYPRESS","F"]
["DAHLIA","F"]
["DAINA","F"]
["DAISY","F"]
["DAKOTA","F"]
["DALE","F"]
["DALIA","F"]
["DALLAS","F"]
["DANA","F"]
["DANAE","F"]
["DANELLE","F"]
["DANETTE","F"]
["DANI","F"]
["DANIA","F"]
["DANICA","F"]
["DANIELA","F"]
["DANIELLA","F"]
["DANIELLE","F"]
["DANIKA","F"]
["DANNIELLE","F"]
["DANYA","F"]
["DAPHNE","F"]
["DARA","F"]
["DARBY","F"]
["DARCI","F"]
["DARCIE","F"]
["DARCY","F"]
["DARIA","F"]
["DARIAN","F"]
["DARLA","F"]
["DARLEEN","F"]
["DARLENE","F"]
["DARLINE","F"]
["DARLYNE","F"]
["DARRAH","F"]
["DARYA","F"]
["DARYL","F"]
["DASHA","F"]
["DAVINA","F"]
["DAWN","F"]
["DAWNA","F"]
["DAWNE","F"]
["DAYA","F"]
["DAYLE","F"]
["DAYNA","F"]
["DEANA","F"]
["DEANNA","F"]
["DEANNE","F"]
["DEBBIE","F"]
["DEBBRA","F"]
["DEBBY","F"]
["DEBORA","F"]
["DEBORAH","F"]
["DEBORRAH","F"]
["DEBRA","F"]
["DEBRAH","F"]
["DEENA","F"]
["DEIDRA","F"]
["DEIDRE","F"]
["DEIRDRE","F"]
["DELANEY","F"]
["DELILAH","F"]
["DELLA","F"]
["DELORES","F"]
["DEMI","F"]
["DENA","F"]
["DENEEN","F"]
["DENICE","F"]
["DENISE","F"]
["DENNISE","F"]
["DESARAE","F"]
["DESIRAE","F"]
["DESIREE","F"]
["DESTINEE","F"]
["DESTINY","F"]
["DEVAN","F"]
["DEVIN","F"]
["DEVON","F"]
["DEVYN","F"]
["DIANA","F"]
["DIANE","F"]
["DIANNA","F"]
["DIANNE","F"]
["DILNOOR","F"]
["DILPREET","F"]
["DINA","F"]
["DINAH","F"]
["DIONE","F"]
["DIONNE","F"]
["DIVYA","F"]
["DIXIE","F"]
["DIYA","F"]
["DOLORES","F"]
["DOMINIQUE","F"]
["DONA","F"]
["DONALDA","F"]
["DONNA","F"]
["DONYA","F"]
["DORA","F"]
["DOREEN","F"]
["DORENE","F"]
["DORIS","F"]
["DOROTHEA","F"]
["DOROTHY","F"]
["DORREEN","F"]
["DORTHY","F"]
["DREW","F"]
["DUA","F"]
["DYLAN","F"]
["EBONY","F"]
["ECHO","F"]
["EDEN","F"]
["EDIE","F"]
["EDITH","F"]
["EDNA","F"]
["EIKO","F"]
["EILA","F"]
["EILEEN","F"]
["EILIDH","F"]
["EILISH","F"]
["EIRA","F"]
["EISHA","F"]
["EKAM","F"]
["EKNOOR","F"]
["ELAAHI","F"]
["ELAHI","F"]
["ELAINA","F"]
["ELAINE","F"]
["ELANA","F"]
["ELARA","F"]
["ELEANOR","F"]
["ELEANORA","F"]
["ELEANORE","F"]
["ELENA","F"]
["ELENI","F"]
["ELIA","F"]
["ELIANA","F"]
["ELIANNA","F"]
["ELICIA","F"]
["ELIN","F"]
["ELINA","F"]
["ELINOR","F"]
["ELISA","F"]
["ELISABETH","F"]
["ELISE","F"]
["ELISHA","F"]
["ELISSA","F"]
["ELIZA","F"]
["ELIZABETH","F"]
["ELIZEBETH","F"]
["ELLA","F"]
["ELLE","F"]
["ELLEN","F"]
["ELLERY","F"]
["ELLIA","F"]
["ELLIANA","F"]
["ELLIANNA","F"]
["ELLIE","F"]
["ELLIOT","F"]
["ELLIOTT","F"]
["ELLIS","F"]
["ELLORA","F"]
["ELLY","F"]
["ELODIE","F"]
["ELOISE","F"]
["ELORA","F"]
["ELOUISE","F"]
["ELOWEN","F"]
["ELOWYN","F"]
["ELSA","F"]
["ELSIE","F"]
["ELVA","F"]
["ELYSE","F"]
["ELYSIA","F"]
["ELYSSA","F"]
["EMBER","F"]
["EMBERLY","F"]
["EMELIA","F"]
["EMERALD","F"]
["EMERIE","F"]
["EMERSON","F"]
["EMERSYN","F"]
["EMERY","F"]
["EMI","F"]
["EMIKO","F"]
["EMILEE","F"]
["EMILIA","F"]
["EMILIE","F"]
["EMILY","F"]
["EMMA","F"]
["EMMA-LEE","F"]
["EMMALEE","F"]
["EMMALYN","F"]
["EMME","F"]
["EMMELINE","F"]
["EMMERSON","F"]
["EMMIE","F"]
["EMMY","F"]
["ENID","F"]
["ERICA","F"]
["ERICKA","F"]
["ERIKA","F"]
["ERIN","F"]
["ERNA","F"]
["ERYN","F"]
["ESHA","F"]
["ESMAE","F"]
["ESME","F"]
["ESMÉ","F"]
["ESTELLA","F"]
["ESTELLE","F"]
["ESTHER","F"]
["ETHEL","F"]
["ETSUKO","F"]
["ETTA","F"]
["EUNICE","F"]
["EVA","F"]
["EVALYN","F"]
["EVANGELINE","F"]
["EVE","F"]
["EVELEEN","F"]
["EVELINA","F"]
["EVELYN","F"]
["EVELYNE","F"]
["EVELYNN","F"]
["EVER","F"]
["EVERLEE","F"]
["EVERLEIGH","F"]
["EVERLEY","F"]
["EVERLY","F"]
["EVIE","F"]
["EZRA","F"]
["FAITH","F"]
["FALLON","F"]
["FANNY","F"]
["FARAH","F"]
["FARRAH","F"]
["FATIMA","F"]
["FAWN","F"]
["FAY","F"]
["FAYE","F"]
["FELICIA","F"]
["FELICITY","F"]
["FENNA","F"]
["FERN","F"]
["FERNE","F"]
["FIADH","F"]
["FINLEY","F"]
["FINNLEY","F"]
["FIONA","F"]
["FLORA","F"]
["FLORENCE","F"]
["FRANCA","F"]
["FRANCES","F"]
["FRANCESCA","F"]
["FRANCINE","F"]
["FRANCIS","F"]
["FRANKIE","F"]
["FREDA","F"]
["FREYA","F"]
["FREYJA","F"]
["FRIDA","F"]
["FUMIKO","F"]
["GABRIELA","F"]
["GABRIELLA","F"]
["GABRIELLE","F"]
["GAGANDEEP","F"]
["GAIA","F"]
["GAIL","F"]
["GALE","F"]
["GANEEV","F"]
["GAY","F"]
["GAYE","F"]
["GAYLE","F"]
["GAYLENE","F"]
["GEET","F"]
["GEETA","F"]
["GEMMA","F"]
["GENA","F"]
["GENESIS","F"]
["GENEVA","F"]
["GENEVIEVE","F"]
["GEORGIA","F"]
["GEORGINA","F"]
["GERALDINE","F"]
["GERTRUDE","F"]
["GIA","F"]
["GIANNA","F"]
["GILLIAN","F"]
["GINA","F"]
["GINGER","F"]
["GIORGIA","F"]
["GIOVANNA","F"]
["GISELLE","F"]
["GIULIA","F"]
["GIULIANA","F"]
["GIUSEPPINA","F"]
["GLADYS","F"]
["GLENDA","F"]
["GLENNA","F"]
["GLENYS","F"]
["GLORIA","F"]
["GLYNIS","F"]
["GOLDIE","F"]
["GRACE","F"]
["GRACELYN","F"]
["GRACELYNN","F"]
["GRACIE","F"]
["GRETA","F"]
["GUNEET","F"]
["GURASEES","F"]
["GURBANI","F"]
["GURDEEP","F"]
["GURINDER","F"]
["GURJIT","F"]
["GURJOT","F"]
["GURKIRAN","F"]
["GURLEEN","F"]
["GURMANNAT","F"]
["GURMEHAR","F"]
["GURNAAZ","F"]
["GURNADAR","F"]
["GURNAZ","F"]
["GURNEET","F"]
["GURNOOR","F"]
["GURPREET","F"]
["GURSEERAT","F"]
["GURSHARAN","F"]
["GURSIMRAN","F"]
["GURVEEN","F"]
["GURVIR","F"]
["GWEN","F"]
["GWENDOLINE","F"]
["GWENDOLYN","F"]
["GWENYTH","F"]
["GWYNETH","F"]
["HADASSAH","F"]
["HADLEY","F"]
["HAFSA","F"]
["HAILEE","F"]
["HAILEY","F"]
["HAILIE","F"]
["HAISLEY","F"]
["HALEIGH","F"]
["HALEY","F"]
["HALLE","F"]
["HALLEY","F"]
["HALLIE","F"]
["HANA","F"]
["HANEET","F"]
["HANNA","F"]
["HANNAH","F"]
["HARDEEP","F"]
["HARGUN","F"]
["HARINDER","F"]
["HARJINDER","F"]
["HARJIT","F"]
["HARJOT","F"]
["HARKIRAN","F"]
["HARKIRAT","F"]
["HARLEE","F"]
["HARLEEN","F"]
["HARLEY","F"]
["HARLIV","F"]
["HARLOW","F"]
["HARLYN","F"]
["HARMAN","F"]
["HARMONY","F"]
["HARNAAZ","F"]
["HARNEET","F"]
["HARNOOR","F"]
["HARPER","F"]
["HARPREET","F"]
["HARRIET","F"]
["HARSIMRAN","F"]
["HARTLEY","F"]
["HARUKO","F"]
["HARUMI","F"]
["HARVEEN","F"]
["HARVIR","F"]
["HASRAT","F"]
["HATTIE","F"]
["HAVANA","F"]
["HAVEN","F"]
["HAYDEN","F"]
["HAYLEE","F"]
["HAYLEY","F"]
["HAYLIE","F"]
["HAZEL","F"]
["HEATHER","F"]
["HEIDI","F"]
["HELEN","F"]
["HELENA","F"]
["HELENE","F"]
["HELGA","F"]
["HELLEN","F"]
["HENLEY","F"]
["HENNA","F"]
["HENRIETTA","F"]
["HIDEKO","F"]
["HILARY","F"]
["HILDA","F"]
["HILLARY","F"]
["HIROKO","F"]
["HISAKO","F"]
["HOLLAND","F"]
["HOLLIE","F"]
["HOLLIS","F"]
["HOLLY","F"]
["HOPE","F"]
["HUDA","F"]
["HUDSON","F"]
["HUNTER","F"]
["IBAADAT","F"]
["IBADAT","F"]
["IDA","F"]
["ILA","F"]
["ILONA","F"]
["IMAN","F"]
["IMOGEN","F"]
["INA","F"]
["INAAYA","F"]
["INARA","F"]
["INAYA","F"]
["INAYAT","F"]
["INDERPREET","F"]
["INDIA","F"]
["INDIANA","F"]
["INDIE","F"]
["INDIGO","F"]
["INDY","F"]
["INEZ","F"]
["INGE","F"]
["INGRID","F"]
["IONA","F"]
["IQRA","F"]
["IRA","F"]
["IRELAND","F"]
["IRELYN","F"]
["IRENE","F"]
["IRIS","F"]
["IRMA","F"]
["ISABEL","F"]
["ISABELA","F"]
["ISABELL","F"]
["ISABELLA","F"]
["ISABELLE","F"]
["ISADORA","F"]
["ISHA","F"]
["ISHIKA","F"]
["ISHMEET","F"]
["ISIS","F"]
["ISLA","F"]
["ISOBEL","F"]
["ISRA","F"]
["IVANA","F"]
["IVANNA","F"]
["IVORY","F"]
["IVY","F"]
["IYLA","F"]
["IZABEL","F"]
["IZABELLA","F"]
["IZABELLE","F"]
["IZZY","F"]
["JACEY","F"]
["JACKELYN","F"]
["JACKIE","F"]
["JACKLYN","F"]
["JACLYN","F"]
["JACQUELINE","F"]
["JACQUELYN","F"]
["JADA","F"]
["JADE","F"]
["JADEN","F"]
["JADYN","F"]
["JAEDA","F"]
["JAEDYN","F"]
["JAELYN","F"]
["JAELYNN","F"]
["JAIDA","F"]
["JAIDEN","F"]
["JAIDYN","F"]
["JAIME","F"]
["JAIMEE","F"]
["JAIMIE","F"]
["JAINA","F"]
["JAIYA","F"]
["JAMI","F"]
["JAMIE","F"]
["JAMIE-LEE","F"]
["JAN","F"]
["JANA","F"]
["JANAE","F"]
["JANAYA","F"]
["JANE","F"]
["JANEL","F"]
["JANELLE","F"]
["JANESSA","F"]
["JANET","F"]
["JANETTE","F"]
["JANEY","F"]
["JANICE","F"]
["JANIE","F"]
["JANINE","F"]
["JANIS","F"]
["JANNA","F"]
["JANNAT","F"]
["JAPJI","F"]
["JAPLEEN","F"]
["JAPNEET","F"]
["JAPNOOR","F"]
["JAPREET","F"]
["JAQUELINE","F"]
["JASBIR","F"]
["JASDEEP","F"]
["JASKIRAN","F"]
["JASKIRAT","F"]
["JASLEEN","F"]
["JASMEEN","F"]
["JASMEET","F"]
["JASMIN","F"]
["JASMINE","F"]
["JASMYN","F"]
["JASNEET","F"]
["JASNOOR","F"]
["JASPER","F"]
["JASPREET","F"]
["JASREET","F"]
["JASVINDER","F"]
["JASWINDER","F"]
["JATINDER","F"]
["JAYA","F"]
["JAYCEE","F"]
["JAYDA","F"]
["JAYDE","F"]
["JAYDEN","F"]
["JAYLA","F"]
["JAYLENE","F"]
["JAYLIN","F"]
["JAYME","F"]
["JAYMEE","F"]
["JAYMIE","F"]
["JAYNA","F"]
["JAYNE","F"]
["JAZLYN","F"]
["JAZMIN","F"]
["JAZMINE","F"]
["JEAN","F"]
["JEANETTE","F"]
["JEANIE","F"]
["JEANINE","F"]
["JEANNE","F"]
["JEANNETTE","F"]
["JEANNIE","F"]
["JEANNINE","F"]
["JEEVAN","F"]
["JEMMA","F"]
["JENA","F"]
["JENAYA","F"]
["JENELLE","F"]
["JENESSA","F"]
["JENICA","F"]
["JENIFER","F"]
["JENILEE","F"]
["JENINE","F"]
["JENNA","F"]
["JENNI","F"]
["JENNICA","F"]
["JENNIE","F"]
["JENNIFER","F"]
["JENNY","F"]
["JENSEN","F"]
["JERI","F"]
["JERSEY","F"]
["JESSA","F"]
["JESSE","F"]
["JESSI","F"]
["JESSICA","F"]
["JESSIE","F"]
["JESSIKA","F"]
["JESSY","F"]
["JEWEL","F"]
["JIA","F"]
["JIANNA","F"]
["JIAYI","F"]
["JILL","F"]
["JILLIAN","F"]
["JIND","F"]
["JIYA","F"]
["JO","F"]
["JO-ANN","F"]
["JO-ANNE","F"]
["JOAN","F"]
["JOANN","F"]
["JOANNA","F"]
["JOANNE","F"]
["JOCELYN","F"]
["JODI","F"]
["JODIE","F"]
["JODY","F"]
["JOELLE","F"]
["JOEY","F"]
["JOHANNA","F"]
["JOLEEN","F"]
["JOLENE","F"]
["JOLIE","F"]
["JONI","F"]
["JORDAN","F"]
["JORDANA","F"]
["JORDANNA","F"]
["JORDANNE","F"]
["JORDIS","F"]
["JORDYN","F"]
["JORDYNN","F"]
["JORJA","F"]
["JOSEPHINE","F"]
["JOSIE","F"]
["JOURNEY","F"]
["JOVI","F"]
["JOVIE","F"]
["JOY","F"]
["JOYCE","F"]
["JUANITA","F"]
["JUDITH","F"]
["JUDY","F"]
["JULIA","F"]
["JULIANA","F"]
["JULIANNA","F"]
["JULIANNE","F"]
["JULIE","F"]
["JULIE-ANN","F"]
["JULIET","F"]
["JULIETTE","F"]
["JUNE","F"]
["JUNIPER","F"]
["JUNO","F"]
["JUPITER","F"]
["JUSTICE","F"]
["JUSTINA","F"]
["JUSTINE","F"]
["KA","F"]
["KACEY","F"]
["KACIE","F"]
["KADENCE","F"]
["KADIE","F"]
["KAEDE","F"]
["KAELA","F"]
["KAELI","F"]
["KAELYN","F"]
["KAI","F"]
["KAIA","F"]
["KAIDENCE","F"]
["KAILA","F"]
["KAILEE","F"]
["KAILEY","F"]
["KAILYN","F"]
["KAIRA","F"]
["KAIRI","F"]
["KAITLIN","F"]
["KAITLYN","F"]
["KAITLYNN","F"]
["KAIYA","F"]
["KAJAL","F"]
["KAJOL","F"]
["KALA","F"]
["KALEIGH","F"]
["KALEY","F"]
["KALI","F"]
["KALIA","F"]
["KALIAH","F"]
["KALIE","F"]
["KALINA","F"]
["KALISTA","F"]
["KALIYAH","F"]
["KALLI","F"]
["KALLIE","F"]
["KAMA","F"]
["KAMAL","F"]
["KAMALDEEP","F"]
["KAMALJIT","F"]
["KAMALPREET","F"]
["KAMILA","F"]
["KAMRYN","F"]
["KANDACE","F"]
["KANDICE","F"]
["KARA","F"]
["KAREENA","F"]
["KAREN","F"]
["KARENDEEP","F"]
["KARI","F"]
["KARI-ANN","F"]
["KARIN","F"]
["KARINA","F"]
["KARIS","F"]
["KARISHMA","F"]
["KARISSA","F"]
["KARLA","F"]
["KARLEE","F"]
["KARLEY","F"]
["KARLI","F"]
["KARLIE","F"]
["KARLY","F"]
["KARMA","F"]
["KARMAN","F"]
["KARMEN","F"]
["KAROLYN","F"]
["KARON","F"]
["KARRIE","F"]
["KARYN","F"]
["KASANDRA","F"]
["KASEY","F"]
["KASSANDRA","F"]
["KASSIDY","F"]
["KATALINA","F"]
["KATARINA","F"]
["KATE","F"]
["KATELIN","F"]
["KATELYN","F"]
["KATELYNN","F"]
["KATERINA","F"]
["KATHALEEN","F"]
["KATHARINA","F"]
["KATHARINE","F"]
["KATHERINE","F"]
["KATHIE","F"]
["KATHLEEN","F"]
["KATHRINE","F"]
["KATHRYN","F"]
["KATHY","F"]
["KATI","F"]
["KATIA","F"]
["KATIE","F"]
["KATLYN","F"]
["KATRINA","F"]
["KATY","F"]
["KAUR","F"]
["KAVNOOR","F"]
["KAY","F"]
["KAYA","F"]
["KAYCEE","F"]
["KAYDEN","F"]
["KAYDENCE","F"]
["KAYLA","F"]
["KAYLEA","F"]
["KAYLEE","F"]
["KAYLEIGH","F"]
["KAYLEN","F"]
["KAYLENE","F"]
["KAYLEY","F"]
["KAYLI","F"]
["KAYLIE","F"]
["KAYLIN","F"]
["KAYLYN","F"]
["KAYSHA","F"]
["KAZUKO","F"]
["KEANA","F"]
["KEANNA","F"]
["KEARA","F"]
["KEELEY","F"]
["KEELY","F"]
["KEERAT","F"]
["KEESHA","F"]
["KEIKO","F"]
["KEIRA","F"]
["KEISHA","F"]
["KELLEY","F"]
["KELLI","F"]
["KELLIE","F"]
["KELLY","F"]
["KELSEA","F"]
["KELSEY","F"]
["KELSI","F"]
["KELSIE","F"]
["KELSY","F"]
["KENADIE","F"]
["KENDAL","F"]
["KENDALL","F"]
["KENDRA","F"]
["KENLEY","F"]
["KENNA","F"]
["KENNADY","F"]
["KENNEDI","F"]
["KENNEDY","F"]
["KENSINGTON","F"]
["KENYA","F"]
["KENZIE","F"]
["KEONA","F"]
["KEREN","F"]
["KERI","F"]
["KERRI","F"]
["KERRIE","F"]
["KERRY","F"]
["KESHIA","F"]
["KEZIAH","F"]
["KHALEESI","F"]
["KHLOE","F"]
["KHUSHI","F"]
["KIA","F"]
["KIAH","F"]
["KIANA","F"]
["KIANNA","F"]
["KIARA","F"]
["KIARRA","F"]
["KIERA","F"]
["KIERAN","F"]
["KIERRA","F"]
["KIERSTEN","F"]
["KIESHA","F"]
["KILEY","F"]
["KIM","F"]
["KIMBERLEE","F"]
["KIMBERLEY","F"]
["KIMBERLIE","F"]
["KIMBERLY","F"]
["KIMIKO","F"]
["KINLEY","F"]
["KINSLEY","F"]
["KIRA","F"]
["KIRAN","F"]
["KIRANDEEP","F"]
["KIRAT","F"]
["KIRBY","F"]
["KIRPA","F"]
["KIRRA","F"]
["KIRSTEN","F"]
["KIRSTI","F"]
["KIRSTIE","F"]
["KIRSTIN","F"]
["KIRSTY","F"]
["KIYOKO","F"]
["KLARA","F"]
["KOMAL","F"]
["KOMALPREET","F"]
["KORA","F"]
["KORI","F"]
["KORRA","F"]
["KOURTNEY","F"]
["KRISTA","F"]
["KRISTAL","F"]
["KRISTEL","F"]
["KRISTEN","F"]
["KRISTI","F"]
["KRISTIE","F"]
["KRISTIN","F"]
["KRISTINA","F"]
["KRISTINE","F"]
["KRISTY","F"]
["KRISTYN","F"]
["KRYSTA","F"]
["KRYSTAL","F"]
["KRYSTEN","F"]
["KRYSTINA","F"]
["KRYSTLE","F"]
["KUDRAT","F"]
["KYA","F"]
["KYAH","F"]
["KYANNA","F"]
["KYLA","F"]
["KYLEE","F"]
["KYLENE","F"]
["KYLIE","F"]
["KYOKO","F"]
["KYRA","F"]
["LACEY","F"]
["LACY","F"]
["LAI","F"]
["LAILA","F"]
["LAINE","F"]
["LAINEY","F"]
["LANA","F"]
["LANI","F"]
["LARA","F"]
["LARAINE","F"]
["LARISSA","F"]
["LARK","F"]
["LATISHA","F"]
["LAUNA","F"]
["LAURA","F"]
["LAURA-LEE","F"]
["LAURALEE","F"]
["LAUREEN","F"]
["LAUREL","F"]
["LAUREN","F"]
["LAURENE","F"]
["LAURETTA","F"]
["LAURIE","F"]
["LAURIE-ANN","F"]
["LAURYN","F"]
["LAVERNE","F"]
["LAVINA","F"]
["LAVINIA","F"]
["LAYAN","F"]
["LAYLA","F"]
["LAYNE","F"]
["LEA","F"]
["LEAH","F"]
["LEANDRA","F"]
["LEANN","F"]
["LEANNA","F"]
["LEANNE","F"]
["LEE","F"]
["LEE-ANN","F"]
["LEE-ANNE","F"]
["LEEANN","F"]
["LEEANNE","F"]
["LEELA","F"]
["LEEN","F"]
["LEENA","F"]
["LEIA","F"]
["LEIGH","F"]
["LEIGH-ANN","F"]
["LEIGHTON","F"]
["LEILA","F"]
["LEILANI","F"]
["LEISA","F"]
["LENA","F"]
["LENI","F"]
["LENNON","F"]
["LENNOX","F"]
["LENNYN","F"]
["LENORA","F"]
["LENORE","F"]
["LEONA","F"]
["LESA","F"]
["LESLEE","F"]
["LESLEY","F"]
["LESLIE","F"]
["LETICIA","F"]
["LETITIA","F"]
["LEXI","F"]
["LEXIE","F"]
["LEXUS","F"]
["LEYLA","F"]
["LIA","F"]
["LIANA","F"]
["LIANE","F"]
["LIANNA","F"]
["LIANNE","F"]
["LIBBY","F"]
["LIBERTY","F"]
["LILA","F"]
["LILAH","F"]
["LILI","F"]
["LILIA","F"]
["LILIAN","F"]
["LILIANA","F"]
["LILIANNA","F"]
["LILITH","F"]
["LILLI","F"]
["LILLIAN","F"]
["LILLIANA","F"]
["LILLIE","F"]
["LILLY","F"]
["LILOU","F"]
["LILY","F"]
["LINA","F"]
["LINDA","F"]
["LINDEN","F"]
["LINDSAY","F"]
["LINDSEY","F"]
["LINDY","F"]
["LINNEA","F"]
["LINSEY","F"]
["LISA","F"]
["LISA-MARIE","F"]
["LISE","F"]
["LIV","F"]
["LIVIA","F"]
["LIYA","F"]
["LIYANA","F"]
["LIZA","F"]
["LOGAN","F"]
["LOIS","F"]
["LOLA","F"]
["LONDON","F"]
["LONDYN","F"]
["LONI","F"]
["LONNIE","F"]
["LORA","F"]
["LORAINE","F"]
["LOREEN","F"]
["LORELAI","F"]
["LORELEI","F"]
["LOREN","F"]
["LORENA","F"]
["LORENE","F"]
["LORETTA","F"]
["LORI","F"]
["LORI-ANN","F"]
["LORI-ANNE","F"]
["LORIE","F"]
["LORINDA","F"]
["LORNA","F"]
["LORRAINE","F"]
["LORRI","F"]
["LORRIE","F"]
["LOU","F"]
["LOUISA","F"]
["LOUISE","F"]
["LOVE","F"]
["LUANNE","F"]
["LUCA","F"]
["LUCIA","F"]
["LUCIANA","F"]
["LUCIE","F"]
["LUCILLE","F"]
["LUCINDA","F"]
["LUCY","F"]
["LUELLA","F"]
["LUISA","F"]
["LUIZA","F"]
["LUMI","F"]
["LUNA","F"]
["LUX","F"]
["LYANNA","F"]
["LYDIA","F"]
["LYLA","F"]
["LYLAH","F"]
["LYNDA","F"]
["LYNDEN","F"]
["LYNDSAY","F"]
["LYNDSEY","F"]
["LYNETTE","F"]
["LYNN","F"]
["LYNNE","F"]
["LYNNEA","F"]
["LYNNETTE","F"]
["LYNSEY","F"]
["LYRA","F"]
["LYRIC","F"]
["LÉA","F"]
["MABEL","F"]
["MABLE","F"]
["MACEY","F"]
["MACI","F"]
["MACIE","F"]
["MACKENNA","F"]
["MACKENZIE","F"]
["MACY","F"]
["MADALYN","F"]
["MADDIE","F"]
["MADDISON","F"]
["MADELAINE","F"]
["MADELEINE","F"]
["MADELINE","F"]
["MADELYN","F"]
["MADELYNN","F"]
["MADILYN","F"]
["MADILYNN","F"]
["MADISEN","F"]
["MADISON","F"]
["MADISYN","F"]
["MADYSON","F"]
["MAE","F"]
["MAEGAN","F"]
["MAELLE","F"]
["MAEVA","F"]
["MAEVE","F"]
["MAGDALENA","F"]
["MAGDALENE","F"]
["MAGGIE","F"]
["MAGNOLIA","F"]
["MAHI","F"]
["MAIA","F"]
["MAIRA","F"]
["MAISIE","F"]
["MAISY","F"]
["MAIYA","F"]
["MAIZIE","F"]
["MAJA","F"]
["MAKAILA","F"]
["MAKAYLA","F"]
["MAKENA","F"]
["MAKENNA","F"]
["MAKENZIE","F"]
["MALAIKA","F"]
["MALAYA","F"]
["MALEAH","F"]
["MALIA","F"]
["MALIKA","F"]
["MALIYA","F"]
["MALIYAH","F"]
["MALLORY","F"]
["MANAL","F"]
["MANDEEP","F"]
["MANDI","F"]
["MANDIP","F"]
["MANDY","F"]
["MANEET","F"]
["MANINDER","F"]
["MANISHA","F"]
["MANJIT","F"]
["MANJOT","F"]
["MANMEET","F"]
["MANNAT","F"]
["MANPREET","F"]
["MANREET","F"]
["MANROOP","F"]
["MANVEER","F"]
["MANVI","F"]
["MANVIR","F"]
["MAPLE","F"]
["MARA","F"]
["MARCELINE","F"]
["MARCELLA","F"]
["MARCI","F"]
["MARCIA","F"]
["MARCIE","F"]
["MARCY","F"]
["MAREN","F"]
["MARGARET","F"]
["MARGAUX","F"]
["MARGERY","F"]
["MARGO","F"]
["MARGOT","F"]
["MARGRET","F"]
["MARGUERITE","F"]
["MARI","F"]
["MARIA","F"]
["MARIAH","F"]
["MARIAM","F"]
["MARIAN","F"]
["MARIANA","F"]
["MARIANNE","F"]
["MARIE","F"]
["MARIELLE","F"]
["MARIGOLD","F"]
["MARIKA","F"]
["MARIKO","F"]
["MARILEE","F"]
["MARILYN","F"]
["MARILYNE","F"]
["MARILYNN","F"]
["MARILYNNE","F"]
["MARIN","F"]
["MARINA","F"]
["MARION","F"]
["MARISA","F"]
["MARISSA","F"]
["MARJORIE","F"]
["MARJORY","F"]
["MARLA","F"]
["MARLEE","F"]
["MARLEEN","F"]
["MARLENA","F"]
["MARLENE","F"]
["MARLEY","F"]
["MARLINE","F"]
["MARLO","F"]
["MARLOW","F"]
["MARLOWE","F"]
["MARLYN","F"]
["MARNI","F"]
["MARNIE","F"]
["MARSHA","F"]
["MARTHA","F"]
["MARTINA","F"]
["MARWA","F"]
["MARY","F"]
["MARY-ANN","F"]
["MARYAM","F"]
["MARYANN","F"]
["MARYANNE","F"]
["MARYLYN","F"]
["MARYN","F"]
["MASAKO","F"]
["MATAYA","F"]
["MATEA","F"]
["MATILDA","F"]
["MATTEA","F"]
["MAUREEN","F"]
["MAVIS","F"]
["MAX","F"]
["MAXINE","F"]
["MAY","F"]
["MAYA","F"]
["MAYRA","F"]
["MAYVA","F"]
["MAËLLE","F"]
["MCKAYLA","F"]
["MCKENNA","F"]
["MCKENZIE","F"]
["MCKINLEY","F"]
["MEADOW","F"]
["MEAGAN","F"]
["MEAGHAN","F"]
["MEARA","F"]
["MEERA","F"]
["MEGAN","F"]
["MEGGAN","F"]
["MEGHAN","F"]
["MEGHANN","F"]
["MEHAK","F"]
["MEHAR","F"]
["MEHER","F"]
["MEHR","F"]
["MEHREEN","F"]
["MEHTAB","F"]
["MEI","F"]
["MEIGHAN","F"]
["MELANIE","F"]
["MELANY","F"]
["MELIA","F"]
["MELINA","F"]
["MELINDA","F"]
["MELISA","F"]
["MELISSA","F"]
["MELLISSA","F"]
["MELODIE","F"]
["MELODY","F"]
["MELYSSA","F"]
["MEMPHIS","F"]
["MERCEDES","F"]
["MERCY","F"]
["MEREDITH","F"]
["MERILYN","F"]
["MERISSA","F"]
["MERLE","F"]
["MERRILEE","F"]
["MERRY","F"]
["MIA","F"]
["MIAH","F"]
["MICAELA","F"]
["MICAH","F"]
["MICHAELA","F"]
["MICHELE","F"]
["MICHELLE","F"]
["MICHIKO","F"]
["MIDORI","F"]
["MIKA","F"]
["MIKAELA","F"]
["MIKAILA","F"]
["MIKAYLA","F"]
["MILA","F"]
["MILAN","F"]
["MILANA","F"]
["MILANI","F"]
["MILANIA","F"]
["MILDRED","F"]
["MILENA","F"]
["MILEY","F"]
["MILLA","F"]
["MILLER","F"]
["MILLICENT","F"]
["MILLIE","F"]
["MIMI","F"]
["MINA","F"]
["MINDY","F"]
["MINNIE","F"]
["MIRA","F"]
["MIRABEL","F"]
["MIRABELLE","F"]
["MIRACLE","F"]
["MIRANDA","F"]
["MIREYA","F"]
["MIRHA","F"]
["MIRIAM","F"]
["MISA","F"]
["MISAO","F"]
["MISCHA","F"]
["MISHA","F"]
["MISHKA","F"]
["MISTY","F"]
["MITSUE","F"]
["MITSUKO","F"]
["MITZI","F"]
["MIYA","F"]
["MIYOKO","F"]
["MOIRA","F"]
["MOLLIE","F"]
["MOLLY","F"]
["MONA","F"]
["MONICA","F"]
["MONIKA","F"]
["MONIQUE","F"]
["MONROE","F"]
["MONTANA","F"]
["MONTANNA","F"]
["MORGAN","F"]
["MORGANNE","F"]
["MORIAH","F"]
["MURIEL","F"]
["MURPHY","F"]
["MUSKAAN","F"]
["MUSKAN","F"]
["MYA","F"]
["MYAH","F"]
["MYLA","F"]
["MYLAH","F"]
["MYLEE","F"]
["MYRA","F"]
["MYRNA","F"]
["MYRTLE","F"]
["NADAR","F"]
["NADIA","F"]
["NADINE","F"]
["NAHLA","F"]
["NAIA","F"]
["NAIDA","F"]
["NAIRA","F"]
["NAIYA","F"]
["NAKITA","F"]
["NANCY","F"]
["NANETTE","F"]
["NAOMI","F"]
["NARINDER","F"]
["NASEEB","F"]
["NATALIA","F"]
["NATALIE","F"]
["NATALYA","F"]
["NATASCHA","F"]
["NATASHA","F"]
["NATHALIE","F"]
["NAVDEEP","F"]
["NAVJIT","F"]
["NAVJOT","F"]
["NAVKIRAN","F"]
["NAVNEET","F"]
["NAVPREET","F"]
["NAVREEN","F"]
["NAVREET","F"]
["NAVY","F"]
["NAVYA","F"]
["NAYA","F"]
["NEELAM","F"]
["NEHA","F"]
["NEHMAT","F"]
["NELLIE","F"]
["NELLY","F"]
["NERIAH","F"]
["NETANYA","F"]
["NEVA","F"]
["NEVADA","F"]
["NEVAEH","F"]
["NEVE","F"]
["NEVEAH","F"]
["NIA","F"]
["NIAMH","F"]
["NICHOL","F"]
["NICHOLE","F"]
["NICKI","F"]
["NICOLA","F"]
["NICOLE","F"]
["NICOLETTE","F"]
["NICOLLE","F"]
["NIKA","F"]
["NIKI","F"]
["NIKITA","F"]
["NIKKI","F"]
["NIKOLE","F"]
["NILA","F"]
["NIMRAT","F"]
["NIMRIT","F"]
["NINA","F"]
["NISHA","F"]
["NITA","F"]
["NIYA","F"]
["NIYAMAT","F"]
["NOA","F"]
["NOAH","F"]
["NOBUKO","F"]
["NOELLA","F"]
["NOELLE","F"]
["NOLA","F"]
["NONA","F"]
["NOOR","F"]
["NORA","F"]
["NORAH","F"]
["NOREEN","F"]
["NORINE","F"]
["NORMA","F"]
["NOVA","F"]
["NOVAH","F"]
["NYA","F"]
["NYAH","F"]
["NYLA","F"]
["NYLAH","F"]
["NYOMI","F"]
["NYRA","F"]
["OAKLEE","F"]
["OAKLEY","F"]
["OAKLYN","F"]
["OAKLYNN","F"]
["OCEAN","F"]
["OCTAVIA","F"]
["ODESSA","F"]
["ODETTE","F"]
["OLGA","F"]
["OLIVE","F"]
["OLIVIA","F"]
["OONA","F"]
["OPAL","F"]
["OPHELIA","F"]
["ORIANA","F"]
["ORIANNA","F"]
["PAIGE","F"]
["PAISLEE","F"]
["PAISLEY","F"]
["PAITYN","F"]
["PALMER","F"]
["PAMELA","F"]
["PAOLA","F"]
["PARDEEP","F"]
["PARIS","F"]
["PARKER","F"]
["PARMINDER","F"]
["PARMJIT","F"]
["PARNAAZ","F"]
["PARNEET","F"]
["PARVEEN","F"]
["PATIENCE","F"]
["PATRICA","F"]
["PATRICE","F"]
["PATRICIA","F"]
["PATRIZIA","F"]
["PATSY","F"]
["PATTI","F"]
["PAULA","F"]
["PAULETTE","F"]
["PAULINA","F"]
["PAULINE","F"]
["PAVANDEEP","F"]
["PAVNEET","F"]
["PAYAL","F"]
["PAYTEN","F"]
["PAYTON","F"]
["PEARL","F"]
["PEGGY","F"]
["PENELOPE","F"]
["PENNIE","F"]
["PENNY","F"]
["PERSEPHONE","F"]
["PETRA","F"]
["PETRONELLA","F"]
["PEYTON","F"]
["PHAEDRA","F"]
["PHILIPPA","F"]
["PHOEBE","F"]
["PHOENIX","F"]
["PHYLIS","F"]
["PHYLLIS","F"]
["PIA","F"]
["PIPER","F"]
["PIPPA","F"]
["POLLY","F"]
["POOJA","F"]
["POONAM","F"]
["POPPY","F"]
["PORTIA","F"]
["PRABHJOT","F"]
["PRABHLEEN","F"]
["PRABHNOOR","F"]
["PRECIOUS","F"]
["PREET","F"]
["PRESLEY","F"]
["PRIMROSE","F"]
["PRINCESS","F"]
["PRISCILLA","F"]
["PRISHA","F"]
["PRIYA","F"]
["PRIYANKA","F"]
["PUNEET","F"]
["PYPER","F"]
["QUEENIE","F"]
["QUINN","F"]
["RAAVI","F"]
["RABAAB","F"]
["RABAB","F"]
["RABANI","F"]
["RACHAEL","F"]
["RACHEAL","F"]
["RACHEL","F"]
["RACHELLE","F"]
["RAE","F"]
["RAE-ANN","F"]
["RAEGAN","F"]
["RAELENE","F"]
["RAELYN","F"]
["RAELYNN","F"]
["RAEYA","F"]
["RAIN","F"]
["RAINA","F"]
["RAINE","F"]
["RAJBIR","F"]
["RAJINDER","F"]
["RAMAN","F"]
["RAMANDEEP","F"]
["RAMANJIT","F"]
["RAMANPREET","F"]
["RAMNEEK","F"]
["RAMNEET","F"]
["RAMONA","F"]
["RANDEEP","F"]
["RANDI","F"]
["RANJIT","F"]
["RAQUEL","F"]
["RAUNAK","F"]
["RAVEENA","F"]
["RAVEN","F"]
["RAVINA","F"]
["RAVINDER","F"]
["RAVLEEN","F"]
["RAVNEET","F"]
["RAYA","F"]
["RAYANNE","F"]
["RAYLENE","F"]
["RAYNA","F"]
["RAYNE","F"]
["REAGAN","F"]
["REANNA","F"]
["REBECCA","F"]
["REBEKAH","F"]
["REEGAN","F"]
["REENA","F"]
["REESE","F"]
["REET","F"]
["REGAN","F"]
["REGINA","F"]
["REHMAT","F"]
["REIGN","F"]
["REIKO","F"]
["REILLY","F"]
["REINA","F"]
["REMI","F"]
["REMINGTON","F"]
["REMY","F"]
["RENA","F"]
["RENAE","F"]
["RENATA","F"]
["RENE","F"]
["RENEE","F"]
["RENLEY","F"]
["RENÉE","F"]
["RETA","F"]
["REYA","F"]
["REYNA","F"]
["RHEA","F"]
["RHEANNA","F"]
["RHIANNA","F"]
["RHIANNON","F"]
["RHODA","F"]
["RHONDA","F"]
["RHYAN","F"]
["RHYS","F"]
["RIA","F"]
["RIANNA","F"]
["RICHELLE","F"]
["RICKI","F"]
["RIDLEY","F"]
["RIHANNA","F"]
["RIKKI","F"]
["RILEY","F"]
["RINA","F"]
["RIO","F"]
["RIONA","F"]
["RIPLEY","F"]
["RITA","F"]
["RIVER","F"]
["RIYA","F"]
["ROBERTA","F"]
["ROBIN","F"]
["ROBYN","F"]
["ROCHELLE","F"]
["ROMA","F"]
["ROMEE","F"]
["ROMI","F"]
["ROMY","F"]
["RONA","F"]
["RONAK","F"]
["RONDA","F"]
["ROONEY","F"]
["ROOP","F"]
["RORY","F"]
["ROSA","F"]
["ROSALEE","F"]
["ROSALIE","F"]
["ROSALIND","F"]
["ROSALYN","F"]
["ROSANNA","F"]
["ROSANNE","F"]
["ROSE","F"]
["ROSE-MARIE","F"]
["ROSELYN","F"]
["ROSEMARIE","F"]
["ROSEMARY","F"]
["ROSETTA","F"]
["ROSHA","F"]
["ROSIE","F"]
["ROSINA","F"]
["ROSLYN","F"]
["ROWAN","F"]
["ROWEN","F"]
["ROWENA","F"]
["ROWYN","F"]
["ROXANE","F"]
["ROXANN","F"]
["ROXANNA","F"]
["ROXANNE","F"]
["ROYA","F"]
["RUBANI","F"]
["RUBY","F"]
["RUHANI","F"]
["RUMI","F"]
["RUPINDER","F"]
["RUTH","F"]
["RYA","F"]
["RYAH","F"]
["RYAN","F"]
["RYANN","F"]
["RYDER","F"]
["RYLAN","F"]
["RYLEA","F"]
["RYLEE","F"]
["RYLEIGH","F"]
["RYLEY","F"]
["RYLIE","F"]
["SAANJH","F"]
["SAANVI","F"]
["SABINA","F"]
["SABINE","F"]
["SABRINA","F"]
["SACHA","F"]
["SACHIKO","F"]
["SADAKO","F"]
["SADIE","F"]
["SAGE","F"]
["SAHANA","F"]
["SAHARA","F"]
["SAHEJ","F"]
["SAHIB","F"]
["SAHIBA","F"]
["SAIGE","F"]
["SAILOR","F"]
["SAIRA","F"]
["SAIYA","F"]
["SAJE","F"]
["SAKURA","F"]
["SALEM","F"]
["SALLY","F"]
["SALMA","F"]
["SAMA","F"]
["SAMAIRA","F"]
["SAMANTHA","F"]
["SAMARA","F"]
["SAMAYA","F"]
["SAMIRA","F"]
["SAMMI","F"]
["SAMREEN","F"]
["SAMREET","F"]
["SANA","F"]
["SANAYA","F"]
["SANDEEP","F"]
["SANDI","F"]
["SANDIP","F"]
["SANDRA","F"]
["SANDY","F"]
["SANJANA","F"]
["SANJH","F"]
["SANTANA","F"]
["SAOIRSE","F"]
["SAPPHIRE","F"]
["SARA","F"]
["SARAH","F"]
["SARAYA","F"]
["SARBJIT","F"]
["SARGUN","F"]
["SARINA","F"]
["SASHA","F"]
["SASKIA","F"]
["SAVANA","F"]
["SAVANAH","F"]
["SAVANNA","F"]
["SAVANNAH","F"]
["SAVREEN","F"]
["SAWYER","F"]
["SAYA","F"]
["SAYLOR","F"]
["SCARLET","F"]
["SCARLETT","F"]
["SCARLETTE","F"]
["SCOTIA","F"]
["SCOTLYN","F"]
["SCOTTIE","F"]
["SCOUT","F"]
["SEEMA","F"]
["SEERAT","F"]
["SEERIT","F"]
["SEHAJ","F"]
["SELAH","F"]
["SELENA","F"]
["SELENE","F"]
["SELINA","F"]
["SELMA","F"]
["SENNA","F"]
["SEQUOIA","F"]
["SERAPHINA","F"]
["SERENA","F"]
["SERENE","F"]
["SERENITY","F"]
["SERINA","F"]
["SETSUKO","F"]
["SHAE","F"]
["SHAE-LYNN","F"]
["SHAELYN","F"]
["SHAELYNN","F"]
["SHAILYN","F"]
["SHAINA","F"]
["SHAKIRA","F"]
["SHALANE","F"]
["SHAM","F"]
["SHANA","F"]
["SHANAYA","F"]
["SHANDA","F"]
["SHANELLE","F"]
["SHANIA","F"]
["SHANIAH","F"]
["SHANICE","F"]
["SHANNA","F"]
["SHANNON","F"]
["SHANON","F"]
["SHANTEL","F"]
["SHANTELLE","F"]
["SHARA","F"]
["SHAREN","F"]
["SHARI","F"]
["SHARIE","F"]
["SHARILYN","F"]
["SHARLA","F"]
["SHARLEEN","F"]
["SHARLENE","F"]
["SHARON","F"]
["SHARRON","F"]
["SHARYN","F"]
["SHAUN","F"]
["SHAUNA","F"]
["SHAUNNA","F"]
["SHAWN","F"]
["SHAWNA","F"]
["SHAWNE","F"]
["SHAY","F"]
["SHAYE","F"]
["SHAYLA","F"]
["SHAYLEE","F"]
["SHAYLENE","F"]
["SHAYLIN","F"]
["SHAYLYN","F"]
["SHAYNA","F"]
["SHEA","F"]
["SHEENA","F"]
["SHEILA","F"]
["SHELAGH","F"]
["SHELBY","F"]
["SHELLEY","F"]
["SHELLI","F"]
["SHELLIE","F"]
["SHELLY","F"]
["SHEREE","F"]
["SHERI","F"]
["SHERIDAN","F"]
["SHERILYN","F"]
["SHERON","F"]
["SHERRI","F"]
["SHERRIE","F"]
["SHERRON","F"]
["SHERRY","F"]
["SHERRYL","F"]
["SHERYL","F"]
["SHIA","F"]
["SHIANNE","F"]
["SHIELA","F"]
["SHIGEKO","F"]
["SHILO","F"]
["SHILOH","F"]
["SHIRLEY","F"]
["SHIRLY","F"]
["SHIVANI","F"]
["SHIZUKO","F"]
["SHIZUYE","F"]
["SHONA","F"]
["SHONNA","F"]
["SHREYA","F"]
["SHYANN","F"]
["SHYANNE","F"]
["SHYLA","F"]
["SHYLAH","F"]
["SIA","F"]
["SIANA","F"]
["SIARA","F"]
["SIDAK","F"]
["SIDNEY","F"]
["SIENA","F"]
["SIENNA","F"]
["SIERA","F"]
["SIERRA","F"]
["SIFAT","F"]
["SIGRID","F"]
["SILVANA","F"]
["SILVER","F"]
["SILVIA","F"]
["SIMAR","F"]
["SIMONE","F"]
["SIMRAN","F"]
["SIMRANJIT","F"]
["SIMRAT","F"]
["SIMRIN","F"]
["SIMRIT","F"]
["SINEAD","F"]
["SIOBHAN","F"]
["SIRAT","F"]
["SIYA","F"]
["SKY","F"]
["SKYE","F"]
["SKYLA","F"]
["SKYLAR","F"]
["SKYLER","F"]
["SLOAN","F"]
["SLOANE","F"]
["SNEHA","F"]
["SOFIA","F"]
["SOFIE","F"]
["SOLANA","F"]
["SOLEIL","F"]
["SONAM","F"]
["SONIA","F"]
["SONJA","F"]
["SONYA","F"]
["SOPHIA","F"]
["SOPHIE","F"]
["SORAYA","F"]
["SPENCER","F"]
["SPRING","F"]
["STACEY","F"]
["STACI","F"]
["STACIE","F"]
["STACY","F"]
["STEFANIA","F"]
["STEFANIE","F"]
["STELLA","F"]
["STEPHANIE","F"]
["STEPHENIE","F"]
["STEVIE","F"]
["SUE","F"]
["SUHANA","F"]
["SUHAVI","F"]
["SUKHDEEP","F"]
["SUKHJIT","F"]
["SUKHLEEN","F"]
["SUKHMAN","F"]
["SUKHMANI","F"]
["SUKHPREET","F"]
["SUMEET","F"]
["SUMIKO","F"]
["SUMMER","F"]
["SUNDEEP","F"]
["SUNITA","F"]
["SUNNY","F"]
["SUSAN","F"]
["SUSANA","F"]
["SUSANNA","F"]
["SUSANNAH","F"]
["SUSANNE","F"]
["SUSIE","F"]
["SUTTON","F"]
["SUZAN","F"]
["SUZANNA","F"]
["SUZANNE","F"]
["SUZETTE","F"]
["SYBIL","F"]
["SYDNEE","F"]
["SYDNEY","F"]
["SYDNIE","F"]
["SYEDA","F"]
["SYLVIA","F"]
["SYLVIE","F"]
["SYRA","F"]
["TABATHA","F"]
["TABITHA","F"]
["TAELOR","F"]
["TAHLIA","F"]
["TAHNEE","F"]
["TAIYA","F"]
["TAKAKO","F"]
["TAKDEER","F"]
["TALA","F"]
["TALIA","F"]
["TALIYAH","F"]
["TALLULAH","F"]
["TAMANNA","F"]
["TAMARA","F"]
["TAMI","F"]
["TAMIE","F"]
["TAMIKA","F"]
["TAMMI","F"]
["TAMMIE","F"]
["TAMMY","F"]
["TAMRA","F"]
["TANA","F"]
["TANESHA","F"]
["TANIA","F"]
["TANIS","F"]
["TANISHA","F"]
["TANJA","F"]
["TANNER","F"]
["TANNIS","F"]
["TANVEER","F"]
["TANVI","F"]
["TANVIR","F"]
["TANYA","F"]
["TAQDEER","F"]
["TARA","F"]
["TARA-LYNN","F"]
["TARAH","F"]
["TARRA","F"]
["TARYN","F"]
["TASHA","F"]
["TASIA","F"]
["TATIANA","F"]
["TATIANNA","F"]
["TATUM","F"]
["TATYANA","F"]
["TAVIA","F"]
["TAWNY","F"]
["TAWNYA","F"]
["TAYA","F"]
["TAYLA","F"]
["TAYLER","F"]
["TAYLOR","F"]
["TEA","F"]
["TEAGAN","F"]
["TEAGHAN","F"]
["TEANNA","F"]
["TEEGAN","F"]
["TEENA","F"]
["TEGAN","F"]
["TEGH","F"]
["TEHYA","F"]
["TEHZEEB","F"]
["TEMPERANCE","F"]
["TENA","F"]
["TENLEY","F"]
["TENNILLE","F"]
["TERA","F"]
["TERENA","F"]
["TERESA","F"]
["TERESSA","F"]
["TERI","F"]
["TERRA","F"]
["TERRI","F"]
["TERRI-LYNN","F"]
["TERRIE","F"]
["TERRY","F"]
["TERUKO","F"]
["TESLA","F"]
["TESS","F"]
["TESSA","F"]
["TEYA","F"]
["THALIA","F"]
["THEA","F"]
["THEIA","F"]
["THELMA","F"]
["THEODORA","F"]
["THERESA","F"]
["THERESE","F"]
["THERESSA","F"]
["THI","F"]
["TIA","F"]
["TIANA","F"]
["TIANNA","F"]
["TIARA","F"]
["TIERRA","F"]
["TIFFANI","F"]
["TIFFANY","F"]
["TILLY","F"]
["TINA","F"]
["TINA-MARIE","F"]
["TOBI","F"]
["TOBY","F"]
["TOMIKO","F"]
["TONI","F"]
["TONIA","F"]
["TONYA","F"]
["TORI","F"]
["TORY","F"]
["TOSHIKO","F"]
["TOYOKO","F"]
["TRACEY","F"]
["TRACI","F"]
["TRACIE","F"]
["TRACY","F"]
["TREENA","F"]
["TRENA","F"]
["TRICIA","F"]
["TRINA","F"]
["TRINITY","F"]
["TRISH","F"]
["TRISHA","F"]
["TRISTA","F"]
["TRISTAN","F"]
["TRISTEN","F"]
["TRUDI","F"]
["TRUDY","F"]
["TSUNEKO","F"]
["TWYLA","F"]
["TYANNA","F"]
["TYLER","F"]
["TYRA","F"]
["TÉA","F"]
["UMA","F"]
["UNA","F"]
["URSULA","F"]
["VAANI","F"]
["VAANYA","F"]
["VADA","F"]
["VAEDA","F"]
["VALARIE","F"]
["VALENTINA","F"]
["VALERIA","F"]
["VALERIE","F"]
["VALORIE","F"]
["VAMIKA","F"]
["VANESSA","F"]
["VANYA","F"]
["VAYDA","F"]
["VEDA","F"]
["VELDA","F"]
["VELMA","F"]
["VENESSA","F"]
["VERA","F"]
["VERITY","F"]
["VERNA","F"]
["VERONICA","F"]
["VERONIKA","F"]
["VICKI","F"]
["VICKIE","F"]
["VICKY","F"]
["VICTORIA","F"]
["VIDA","F"]
["VIENNA","F"]
["VIOLA","F"]
["VIOLET","F"]
["VIOLETTE","F"]
["VIRGINIA","F"]
["VIVIAN","F"]
["VIVIANA","F"]
["VIVIEN","F"]
["VIVIENNE","F"]
["VY","F"]
["WANDA","F"]
["WAVERLY","F"]
["WENDA","F"]
["WENDI","F"]
["WENDY","F"]
["WHITNEY","F"]
["WILHELMINA","F"]
["WILLA","F"]
["WILLOW","F"]
["WILMA","F"]
["WING","F"]
["WINIFRED","F"]
["WINNIE","F"]
["WINNIFRED","F"]
["WINONA","F"]
["WINSLOW","F"]
["WINTER","F"]
["WREN","F"]
["WRENLEY","F"]
["WYNTER","F"]
["YAEKO","F"]
["YANA","F"]
["YARA","F"]
["YASMEEN","F"]
["YASMIN","F"]
["YASMINE","F"]
["YASUKO","F"]
["YOKO","F"]
["YOLANDA","F"]
["YOSHIKO","F"]
["YSABELLA","F"]
["YU","F"]
["YUI","F"]
["YUKIKO","F"]
["YUNA","F"]
["YURI","F"]
["YURIKO","F"]
["YUSRA","F"]
["YVETTE","F"]
["YVONNE","F"]
["ZADIE","F"]
["ZAHARA","F"]
["ZAHRA","F"]
["ZAINA","F"]
["ZAINAB","F"]
["ZARA","F"]
["ZARAH","F"]
["ZARIA","F"]
["ZAYA","F"]
["ZAYLA","F"]
["ZAYNA","F"]
["ZAYNAB","F"]
["ZELDA","F"]
["ZENA","F"]
["ZI","F"]
["ZIA","F"]
["ZIGGY","F"]
["ZINNIA","F"]
["ZIVA","F"]
["ZOE","F"]
["ZOEY","F"]
["ZOFIA","F"]
["ZOIE","F"]
["ZORA","F"]
["ZOYA","F"]
["ZOÉ","F"]
["ZOË","F"]
["AADEN","M"]
["AARAV","M"]
["AARIV","M"]
["AARIZ","M"]
["AARON","M"]
["AARUSH","M"]
["AARYAN","M"]
["AAYAN","M"]
["ABDUL","M"]
["ABDULAZIZ","M"]
["ABDULLAH","M"]
["ABEER","M"]
["ABEL","M"]
["ABHIJOT","M"]
["ABIR","M"]
["ABRAHAM","M"]
["ACE","M"]
["ACHILLES","M"]
["ADAM","M"]
["ADDISON","M"]
["ADEN","M"]
["ADITYA","M"]
["ADONIS","M"]
["ADRIAN","M"]
["ADRIANO","M"]
["ADRIEL","M"]
["ADRIEN","M"]
["AEDAN","M"]
["AGAM","M"]
["AGAMJOT","M"]
["AGAMVEER","M"]
["AGASTYA","M"]
["AHAAN","M"]
["AHMAD","M"]
["AHMED","M"]
["AIDAN","M"]
["AIDEN","M"]
["AIKAM","M"]
["AJAY","M"]
["AJEET","M"]
["AJIT","M"]
["AKASH","M"]
["AKASHDEEP","M"]
["AKIO","M"]
["AKIRA","M"]
["AKSEL","M"]
["ALAIN","M"]
["ALAN","M"]
["ALARIC","M"]
["ALASTAIR","M"]
["ALBERT","M"]
["ALDEN","M"]
["ALDER","M"]
["ALEC","M"]
["ALEJANDRO","M"]
["ALEKSANDAR","M"]
["ALEKSANDER","M"]
["ALESSANDRO","M"]
["ALEX","M"]
["ALEXANDER","M"]
["ALEXANDRE","M"]
["ALEXIS","M"]
["ALEXZANDER","M"]
["ALFIE","M"]
["ALFRED","M"]
["ALI","M"]
["ALISTAIR","M"]
["ALISTER","M"]
["ALLAN","M"]
["ALLEN","M"]
["ALONZO","M"]
["ALVIN","M"]
["ALWYN","M"]
["ALY","M"]
["AMAN","M"]
["AMANDEEP","M"]
["AMANPREET","M"]
["AMAR","M"]
["AMARDEEP","M"]
["AMARI","M"]
["AMARJIT","M"]
["AMARPREET","M"]
["AMAY","M"]
["AMBROSE","M"]
["AMIR","M"]
["AMIT","M"]
["AMMAR","M"]
["AMOS","M"]
["AMRINDER","M"]
["AMRIT","M"]
["AMRITPAL","M"]
["AMRITPAUL","M"]
["ANAKIN","M"]
["ANDERS","M"]
["ANDERSON","M"]
["ANDRE","M"]
["ANDREAS","M"]
["ANDREI","M"]
["ANDREW","M"]
["ANDRÉ","M"]
["ANDY","M"]
["ANGAD","M"]
["ANGEL","M"]
["ANGELO","M"]
["ANGUS","M"]
["ANHAD","M"]
["ANMOL","M"]
["ANOOP","M"]
["ANSH","M"]
["ANSON","M"]
["ANTE","M"]
["ANTHONY","M"]
["ANTOINE","M"]
["ANTON","M"]
["ANTONIO","M"]
["ANTONY","M"]
["APOLLO","M"]
["ARAD","M"]
["ARAV","M"]
["ARBAAZ","M"]
["ARCHER","M"]
["ARCHIBALD","M"]
["ARCHIE","M"]
["ARDEN","M"]
["ARES","M"]
["ARHAM","M"]
["ARI","M"]
["ARIA","M"]
["ARIAN","M"]
["ARIE","M"]
["ARIEL","M"]
["ARIES","M"]
["ARIN","M"]
["ARIO","M"]
["ARIYAN","M"]
["ARJAN","M"]
["ARJUN","M"]
["ARLEN","M"]
["ARLO","M"]
["ARMAAN","M"]
["ARMAN","M"]
["ARMAND","M"]
["ARMIN","M"]
["ARNAV","M"]
["ARNE","M"]
["ARNOLD","M"]
["ARON","M"]
["ARRON","M"]
["ARROW","M"]
["ARSHAAN","M"]
["ARSHDEEP","M"]
["ARTHUR","M"]
["ARTIN","M"]
["ARVIN","M"]
["ARVIND","M"]
["ARYA","M"]
["ARYAN","M"]
["ASA","M"]
["ASH","M"]
["ASHAAN","M"]
["ASHER","M"]
["ASHLEY","M"]
["ASHTON","M"]
["ASHWIN","M"]
["ASTON","M"]
["ATHARV","M"]
["ATLAS","M"]
["ATLIN","M"]
["ATREUS","M"]
["ATTICUS","M"]
["ATTILA","M"]
["AUBREY","M"]
["AUGUST","M"]
["AUGUSTINE","M"]
["AUGUSTUS","M"]
["AUSTEN","M"]
["AUSTIN","M"]
["AUSTYN","M"]
["AVEER","M"]
["AVERY","M"]
["AVI","M"]
["AVIJOT","M"]
["AVIN","M"]
["AVIRAJ","M"]
["AVITAJ","M"]
["AVRAJ","M"]
["AVYAAN","M"]
["AXEL","M"]
["AXL","M"]
["AXTON","M"]
["AYAAN","M"]
["AYAN","M"]
["AYANSH","M"]
["AYDAN","M"]
["AYDEN","M"]
["AYDIN","M"]
["AYVEN","M"]
["AZAAD","M"]
["AZLAN","M"]
["BAAZ","M"]
["BAILEY","M"]
["BAKER","M"]
["BALDEEP","M"]
["BALJINDER","M"]
["BALJIT","M"]
["BALKARAN","M"]
["BALRAJ","M"]
["BANKS","M"]
["BARNEY","M"]
["BARON","M"]
["BARRETT","M"]
["BARRIE","M"]
["BARRY","M"]
["BART","M"]
["BARTON","M"]
["BASIL","M"]
["BASTIAN","M"]
["BEAR","M"]
["BEAU","M"]
["BEAUDEN","M"]
["BECK","M"]
["BECKETT","M"]
["BECKHAM","M"]
["BELLAMY","M"]
["BEN","M"]
["BENEDICT","M"]
["BENJAMIN","M"]
["BENJY","M"]
["BENNETT","M"]
["BENNY","M"]
["BENOIT","M"]
["BENSON","M"]
["BENTLEY","M"]
["BERNARD","M"]
["BERNHARD","M"]
["BERNIE","M"]
["BERT","M"]
["BERTRAM","M"]
["BHUPINDER","M"]
["BIKRAM","M"]
["BILAL","M"]
["BILL","M"]
["BILLY","M"]
["BISHOP","M"]
["BJORN","M"]
["BLAIN","M"]
["BLAINE","M"]
["BLAIR","M"]
["BLAISE","M"]
["BLAKE","M"]
["BLAZE","M"]
["BO","M"]
["BOAZ","M"]
["BOBBY","M"]
["BODEN","M"]
["BODHI","M"]
["BODIE","M"]
["BODIN","M"]
["BOONE","M"]
["BORIS","M"]
["BORNA","M"]
["BOSCO","M"]
["BOSTON","M"]
["BOWEN","M"]
["BOWIE","M"]
["BOYD","M"]
["BRAD","M"]
["BRADEN","M"]
["BRADFORD","M"]
["BRADLEY","M"]
["BRADLY","M"]
["BRADY","M"]
["BRADYN","M"]
["BRAEDAN","M"]
["BRAEDEN","M"]
["BRAEDON","M"]
["BRAIDEN","M"]
["BRANDAN","M"]
["BRANDEN","M"]
["BRANDON","M"]
["BRANDT","M"]
["BRANDYN","M"]
["BRANT","M"]
["BRANTLEY","M"]
["BRAXTON","M"]
["BRAYDEN","M"]
["BRAYDON","M"]
["BRENDAN","M"]
["BRENDEN","M"]
["BRENDON","M"]
["BRENNAN","M"]
["BRENNEN","M"]
["BRENT","M"]
["BRENTON","M"]
["BRET","M"]
["BRETT","M"]
["BRIAN","M"]
["BRIGGS","M"]
["BRIGHTON","M"]
["BRIXTON","M"]
["BROCK","M"]
["BRODERICK","M"]
["BRODIE","M"]
["BRODY","M"]
["BROGAN","M"]
["BRONSON","M"]
["BROOK","M"]
["BROOKLYN","M"]
["BROOKS","M"]
["BRUCE","M"]
["BRUNO","M"]
["BRYAN","M"]
["BRYANT","M"]
["BRYCE","M"]
["BRYCEN","M"]
["BRYDEN","M"]
["BRYN","M"]
["BRYON","M"]
["BRYSON","M"]
["BRYTON","M"]
["BUDDY","M"]
["BURTON","M"]
["BYRON","M"]
["CACHE","M"]
["CADE","M"]
["CADEN","M"]
["CAEDEN","M"]
["CAEL","M"]
["CAELAN","M"]
["CAELUM","M"]
["CAIDEN","M"]
["CAIRO","M"]
["CAIUS","M"]
["CAL","M"]
["CALDER","M"]
["CALE","M"]
["CALEB","M"]
["CALEN","M"]
["CALLAGHAN","M"]
["CALLAHAN","M"]
["CALLAN","M"]
["CALLEN","M"]
["CALLUM","M"]
["CALUM","M"]
["CALVIN","M"]
["CAMDEN","M"]
["CAMERON","M"]
["CAMPBELL","M"]
["CAMRON","M"]
["CAREY","M"]
["CARL","M"]
["CARLIN","M"]
["CARLO","M"]
["CARLOS","M"]
["CARSEN","M"]
["CARSON","M"]
["CARTER","M"]
["CARY","M"]
["CASEY","M"]
["CASH","M"]
["CASHTON","M"]
["CASPER","M"]
["CASPIAN","M"]
["CASSIAN","M"]
["CASSIDY","M"]
["CASSIUS","M"]
["CATLIN","M"]
["CAYDEN","M"]
["CAYSON","M"]
["CECIL","M"]
["CEDAR","M"]
["CEDRIC","M"]
["CHACE","M"]
["CHAD","M"]
["CHADWICK","M"]
["CHANCE","M"]
["CHANDLER","M"]
["CHARLES","M"]
["CHARLIE","M"]
["CHASE","M"]
["CHAZ","M"]
["CHESTER","M"]
["CHI","M"]
["CHIN","M"]
["CHRIS","M"]
["CHRISTIAN","M"]
["CHRISTOPHER","M"]
["CHRISTOS","M"]
["CHUN","M"]
["CIAN","M"]
["CIARAN","M"]
["CILLIAN","M"]
["CLARENCE","M"]
["CLARK","M"]
["CLAUDE","M"]
["CLAUDIO","M"]
["CLAY","M"]
["CLAYTON","M"]
["CLEMENT","M"]
["CLIFFORD","M"]
["CLIFTON","M"]
["CLINT","M"]
["CLINTON","M"]
["CLIVE","M"]
["CLYDE","M"]
["COBY","M"]
["CODEY","M"]
["CODIE","M"]
["CODY","M"]
["COEN","M"]
["COHEN","M"]
["COLBY","M"]
["COLE","M"]
["COLEMAN","M"]
["COLETON","M"]
["COLIN","M"]
["COLLIN","M"]
["COLSON","M"]
["COLT","M"]
["COLTEN","M"]
["COLTER","M"]
["COLTIN","M"]
["COLTON","M"]
["CONAN","M"]
["CONNER","M"]
["CONNOR","M"]
["CONOR","M"]
["CONRAD","M"]
["CONSTANTINE","M"]
["COOPER","M"]
["CORBAN","M"]
["CORBIN","M"]
["CORDELL","M"]
["COREY","M"]
["CORMAC","M"]
["CORNELIS","M"]
["CORNELIUS","M"]
["CORY","M"]
["COSMO","M"]
["COURTNEY","M"]
["COVE","M"]
["CRAIG","M"]
["CREW","M"]
["CRISTIAN","M"]
["CRISTIANO","M"]
["CROSBY","M"]
["CRUZ","M"]
["CULLEN","M"]
["CURT","M"]
["CURTIS","M"]
["CYPRESS","M"]
["CYRIL","M"]
["CYRUS","M"]
["D'ARCY","M"]
["DAEMON","M"]
["DAKODA","M"]
["DAKOTA","M"]
["DALE","M"]
["DALEN","M"]
["DALJIT","M"]
["DALLAS","M"]
["DALLIN","M"]
["DALTON","M"]
["DAMIAN","M"]
["DAMIEN","M"]
["DAMION","M"]
["DAMON","M"]
["DAN","M"]
["DANA","M"]
["DANE","M"]
["DANIAL","M"]
["DANIEL","M"]
["DANIELE","M"]
["DANILO","M"]
["DANNY","M"]
["DANTE","M"]
["DANTÉ","M"]
["DARA","M"]
["DARBY","M"]
["DARCY","M"]
["DAREN","M"]
["DARIAN","M"]
["DARIEN","M"]
["DARIN","M"]
["DARIO","M"]
["DARION","M"]
["DARIUS","M"]
["DARNELL","M"]
["DARREL","M"]
["DARRELL","M"]
["DARREN","M"]
["DARRIEN","M"]
["DARRIN","M"]
["DARRYL","M"]
["DARWIN","M"]
["DARYL","M"]
["DARYLE","M"]
["DARYLL","M"]
["DARYN","M"]
["DASH","M"]
["DAVE","M"]
["DAVID","M"]
["DAVIN","M"]
["DAVINDER","M"]
["DAVIS","M"]
["DAVYN","M"]
["DAWSON","M"]
["DAX","M"]
["DAXON","M"]
["DAXTON","M"]
["DAYA","M"]
["DAYLAN","M"]
["DAYLEN","M"]
["DAYNE","M"]
["DAYTON","M"]
["DEACON","M"]
["DEAN","M"]
["DECKER","M"]
["DECLAN","M"]
["DEEGAN","M"]
["DEEPAK","M"]
["DEKLAN","M"]
["DELBERT","M"]
["DENIS","M"]
["DENNIS","M"]
["DENNY","M"]
["DENVER","M"]
["DENZEL","M"]
["DEREK","M"]
["DERIAN","M"]
["DERICK","M"]
["DERRICK","M"]
["DESMOND","M"]
["DESTIN","M"]
["DEV","M"]
["DEVAN","M"]
["DEVEN","M"]
["DEVIN","M"]
["DEVLIN","M"]
["DEVON","M"]
["DEVYN","M"]
["DEXTER","M"]
["DHRUV","M"]
["DICK","M"]
["DIEGO","M"]
["DILAWAR","M"]
["DILLAN","M"]
["DILLON","M"]
["DILPREET","M"]
["DILRAJ","M"]
["DILSHAAN","M"]
["DIMITRI","M"]
["DIMITRIOS","M"]
["DINO","M"]
["DION","M"]
["DIRK","M"]
["DIXON","M"]
["DOMENIC","M"]
["DOMENICO","M"]
["DOMINIC","M"]
["DOMINICK","M"]
["DOMINIK","M"]
["DOMINIQUE","M"]
["DON","M"]
["DONALD","M"]
["DONAVAN","M"]
["DONNIE","M"]
["DONNY","M"]
["DONOVAN","M"]
["DORIAN","M"]
["DOUGLAS","M"]
["DRAKE","M"]
["DRAVEN","M"]
["DRAYDEN","M"]
["DRE","M"]
["DREW","M"]
["DREYDEN","M"]
["DRYDEN","M"]
["DUANE","M"]
["DUKE","M"]
["DUNCAN","M"]
["DUSTEN","M"]
["DUSTIN","M"]
["DUSTYN","M"]
["DWAIN","M"]
["DWAINE","M"]
["DWAYNE","M"]
["DWIGHT","M"]
["DYLAN","M"]
["DYLLAN","M"]
["DYLON","M"]
["EAMON","M"]
["EARL","M"]
["EARLE","M"]
["EARNEST","M"]
["EASON","M"]
["EASTON","M"]
["EDDIE","M"]
["EDDY","M"]
["EDEN","M"]
["EDGAR","M"]
["EDISON","M"]
["EDMOND","M"]
["EDMUND","M"]
["EDRIC","M"]
["EDWARD","M"]
["EDWIN","M"]
["EESA","M"]
["EHREN","M"]
["EKAM","M"]
["EKAMJOT","M"]
["ELDON","M"]
["ELI","M"]
["ELIAS","M"]
["ELIJAH","M"]
["ELIO","M"]
["ELIOT","M"]
["ELLIOT","M"]
["ELLIOTT","M"]
["ELLIS","M"]
["ELMER","M"]
["ELON","M"]
["ELTON","M"]
["ELVIN","M"]
["ELVIS","M"]
["EMAAN","M"]
["EMERSON","M"]
["EMERY","M"]
["EMIL","M"]
["EMILE","M"]
["EMILIANO","M"]
["EMILIO","M"]
["EMMANUEL","M"]
["EMMET","M"]
["EMMETT","M"]
["EMMITT","M"]
["EMORY","M"]
["EMRYS","M"]
["ENOCH","M"]
["ENRICO","M"]
["ENZO","M"]
["EPHRAIM","M"]
["EREN","M"]
["ERIC","M"]
["ERICH","M"]
["ERICK","M"]
["ERIK","M"]
["ERIN","M"]
["ERNEST","M"]
["ERNIE","M"]
["ERROL","M"]
["ERWIN","M"]
["ESHAAN","M"]
["ESHAN","M"]
["ETHAN","M"]
["ETHEN","M"]
["ETIENNE","M"]
["EUAN","M"]
["EUGENE","M"]
["EVAN","M"]
["EVANDER","M"]
["EVEREST","M"]
["EVERETT","M"]
["EVREN","M"]
["EWAN","M"]
["EZEKIEL","M"]
["EZRA","M"]
["FABIAN","M"]
["FARHAN","M"]
["FARIS","M"]
["FARON","M"]
["FATEH","M"]
["FATEHVEER","M"]
["FELIX","M"]
["FENTON","M"]
["FERGUS","M"]
["FILIP","M"]
["FINDLAY","M"]
["FINLAY","M"]
["FINLEY","M"]
["FINN","M"]
["FINNEGAN","M"]
["FINNIAN","M"]
["FINNIGAN","M"]
["FINNLEY","M"]
["FIONN","M"]
["FISCHER","M"]
["FISHER","M"]
["FLETCHER","M"]
["FLOYD","M"]
["FLYNN","M"]
["FORD","M"]
["FOREST","M"]
["FORREST","M"]
["FOSTER","M"]
["FOX","M"]
["FRANCESCO","M"]
["FRANCIS","M"]
["FRANCISCO","M"]
["FRANCO","M"]
["FRANK","M"]
["FRANKIE","M"]
["FRANKLIN","M"]
["FRASER","M"]
["FRED","M"]
["FREDDIE","M"]
["FREDERIC","M"]
["FREDERICK","M"]
["FREDRIC","M"]
["FREDRICK","M"]
["FUMIO","M"]
["FYNN","M"]
["FÉLIX","M"]
["GABRIEL","M"]
["GAEL","M"]
["GAGANDEEP","M"]
["GAGE","M"]
["GAIGE","M"]
["GALEN","M"]
["GARETH","M"]
["GARETT","M"]
["GARFIELD","M"]
["GARNET","M"]
["GARRET","M"]
["GARRETT","M"]
["GARRICK","M"]
["GARRY","M"]
["GARTH","M"]
["GARY","M"]
["GAUGE","M"]
["GAURAV","M"]
["GAVIN","M"]
["GAVYN","M"]
["GENE","M"]
["GEOFFREY","M"]
["GEORDIE","M"]
["GEORGE","M"]
["GERALD","M"]
["GERARD","M"]
["GERARDUS","M"]
["GERHARD","M"]
["GERRY","M"]
["GIAN","M"]
["GIANNI","M"]
["GIBSON","M"]
["GIDEON","M"]
["GILBERT","M"]
["GINO","M"]
["GIO","M"]
["GIORGIO","M"]
["GIOVANNI","M"]
["GIUSEPPE","M"]
["GLEN","M"]
["GLENN","M"]
["GODFREY","M"]
["GORDEN","M"]
["GORDON","M"]
["GRADY","M"]
["GRAEME","M"]
["GRAHAM","M"]
["GRANT","M"]
["GRAYDEN","M"]
["GRAYDON","M"]
["GRAYSEN","M"]
["GRAYSON","M"]
["GREG","M"]
["GREGG","M"]
["GREGOR","M"]
["GREGORY","M"]
["GREIG","M"]
["GREY","M"]
["GREYSON","M"]
["GRIFFIN","M"]
["GUNNAR","M"]
["GUNNER","M"]
["GURBAAZ","M"]
["GURBIR","M"]
["GURDEEP","M"]
["GURFATEH","M"]
["GURINDER","M"]
["GURJAAP","M"]
["GURJEET","M"]
["GURJIT","M"]
["GURJOT","M"]
["GURKARAN","M"]
["GURKIRAT","M"]
["GURMAN","M"]
["GURMINDER","M"]
["GURNAWAB","M"]
["GURNIWAAZ","M"]
["GURNIWAZ","M"]
["GURNOOR","M"]
["GURPREET","M"]
["GURSHAAN","M"]
["GURSHAN","M"]
["GURSHAWN","M"]
["GURSIMRAN","M"]
["GURTAJ","M"]
["GURTEJ","M"]
["GURVEER","M"]
["GURVINDER","M"]
["GURVIR","M"]
["GUS","M"]
["GUY","M"]
["HADI","M"]
["HAIDEN","M"]
["HAL","M"]
["HAMISH","M"]
["HAMZA","M"]
["HANK","M"]
["HANS","M"]
["HANSON","M"]
["HAO","M"]
["HARBAAZ","M"]
["HARBIR","M"]
["HARDEEP","M"]
["HARGUN","M"]
["HARINDER","M"]
["HARJAN","M"]
["HARJAP","M"]
["HARJAS","M"]
["HARJIT","M"]
["HARJOT","M"]
["HARKARAN","M"]
["HARKIRAT","M"]
["HARLAN","M"]
["HARLEY","M"]
["HARLOW","M"]
["HARMAN","M"]
["HARMANDEEP","M"]
["HARMEET","M"]
["HARMEN","M"]
["HARMINDER","M"]
["HARNAV","M"]
["HARNOOR","M"]
["HAROLD","M"]
["HAROON","M"]
["HARPER","M"]
["HARPREET","M"]
["HARRIS","M"]
["HARRISON","M"]
["HARRY","M"]
["HARSH","M"]
["HARSHAAN","M"]
["HARSHAN","M"]
["HARSHDEEP","M"]
["HARSIMRAN","M"]
["HARTLEY","M"]
["HARUO","M"]
["HARVEER","M"]
["HARVEY","M"]
["HARVIN","M"]
["HARVINDER","M"]
["HARVIR","M"]
["HASAN","M"]
["HASHIM","M"]
["HASSAN","M"]
["HAYDEN","M"]
["HAYDN","M"]
["HAYES","M"]
["HEATH","M"]
["HECTOR","M"]
["HENDRIK","M"]
["HENDRIX","M"]
["HENRI","M"]
["HENRIK","M"]
["HENRY","M"]
["HERBERT","M"]
["HERMAN","M"]
["HEZEKIAH","M"]
["HIDEO","M"]
["HIMMAT","M"]
["HIRO","M"]
["HIROSHI","M"]
["HISAO","M"]
["HO","M"]
["HOLDEN","M"]
["HORACE","M"]
["HOUSTON","M"]
["HOWARD","M"]
["HUBERT","M"]
["HUDSON","M"]
["HUGH","M"]
["HUGO","M"]
["HUKAM","M"]
["HUNAR","M"]
["HUNTER","M"]
["HUSSAIN","M"]
["HUXLEY","M"]
["IAIN","M"]
["IAN","M"]
["IBRAHEEM","M"]
["IBRAHIM","M"]
["IDRIS","M"]
["ILYA","M"]
["IMAAN","M"]
["IMRAN","M"]
["INDERJIT","M"]
["INDERPAL","M"]
["INDERPREET","M"]
["INDY","M"]
["IRA","M"]
["IRVINE","M"]
["ISA","M"]
["ISAAC","M"]
["ISAAK","M"]
["ISAIAH","M"]
["ISAMU","M"]
["ISAO","M"]
["ISHAAN","M"]
["ISHAN","M"]
["ISIAH","M"]
["ISRAEL","M"]
["ISSAC","M"]
["IVAAN","M"]
["IVAN","M"]
["IVAR","M"]
["IVER","M"]
["IZAAK","M"]
["IZAIAH","M"]
["JACE","M"]
["JACK","M"]
["JACKIE","M"]
["JACKSON","M"]
["JACKY","M"]
["JACOB","M"]
["JACQUES","M"]
["JADE","M"]
["JADEN","M"]
["JADON","M"]
["JADYN","M"]
["JAEDEN","M"]
["JAGDEEP","M"]
["JAGGER","M"]
["JAGJIT","M"]
["JAGRAJ","M"]
["JAGROOP","M"]
["JAHAAN","M"]
["JAI","M"]
["JAIDEN","M"]
["JAIDON","M"]
["JAIME","M"]
["JAIRUS","M"]
["JAIVEER","M"]
["JAIVIN","M"]
["JAKE","M"]
["JAKOB","M"]
["JAKUB","M"]
["JALEN","M"]
["JAMAL","M"]
["JAMES","M"]
["JAMESON","M"]
["JAMEY","M"]
["JAMIE","M"]
["JAMIESON","M"]
["JAMISON","M"]
["JAN","M"]
["JARED","M"]
["JARET","M"]
["JARETT","M"]
["JAROD","M"]
["JARON","M"]
["JARRED","M"]
["JARRET","M"]
["JARRETT","M"]
["JARROD","M"]
["JASBIR","M"]
["JASDEEP","M"]
["JASE","M"]
["JASEN","M"]
["JASHAN","M"]
["JASKARAN","M"]
["JASKARN","M"]
["JASKIRAT","M"]
["JASMAN","M"]
["JASMEET","M"]
["JASON","M"]
["JASPAL","M"]
["JASPER","M"]
["JASPREET","M"]
["JASRAJ","M"]
["JASVINDER","M"]
["JATINDER","M"]
["JAVIER","M"]
["JAX","M"]
["JAXEN","M"]
["JAXON","M"]
["JAXSON","M"]
["JAXTON","M"]
["JAXTYN","M"]
["JAXX","M"]
["JAXXON","M"]
["JAY","M"]
["JAYCE","M"]
["JAYDEN","M"]
["JAYDON","M"]
["JAYLEN","M"]
["JAYME","M"]
["JAYSON","M"]
["JAYVEN","M"]
["JEAN","M"]
["JEAN-LUC","M"]
["JEAN-PAUL","M"]
["JEEVAN","M"]
["JEFF","M"]
["JEFFERY","M"]
["JEFFREY","M"]
["JEFFRY","M"]
["JENSEN","M"]
["JENSON","M"]
["JERALD","M"]
["JEREMEY","M"]
["JEREMIAH","M"]
["JEREMY","M"]
["JERICHO","M"]
["JERMAINE","M"]
["JEROD","M"]
["JEROME","M"]
["JEROMY","M"]
["JERRY","M"]
["JESS","M"]
["JESSE","M"]
["JESSIE","M"]
["JESSY","M"]
["JET","M"]
["JETHRO","M"]
["JETT","M"]
["JIA","M"]
["JIGAR","M"]
["JIM","M"]
["JIMMIE","M"]
["JIMMY","M"]
["JIN","M"]
["JIREH","M"]
["JOAO","M"]
["JOAQUIN","M"]
["JOBAN","M"]
["JODH","M"]
["JODY","M"]
["JOE","M"]
["JOEL","M"]
["JOESPH","M"]
["JOEY","M"]
["JOHAN","M"]
["JOHANN","M"]
["JOHANNES","M"]
["JOHN","M"]
["JOHNATHAN","M"]
["JOHNATHON","M"]
["JOHNNIE","M"]
["JOHNNY","M"]
["JOHNSON","M"]
["JON","M"]
["JONAH","M"]
["JONAS","M"]
["JONATHAN","M"]
["JONATHON","M"]
["JONES","M"]
["JORA","M"]
["JORAWAR","M"]
["JORDAN","M"]
["JORDEN","M"]
["JORDIN","M"]
["JORDON","M"]
["JORGE","M"]
["JORY","M"]
["JOSE","M"]
["JOSEF","M"]
["JOSEPH","M"]
["JOSH","M"]
["JOSHUA","M"]
["JOSIAH","M"]
["JOSUE","M"]
["JOSÉ","M"]
["JOVAN","M"]
["JOVEN","M"]
["JOVIN","M"]
["JUAN","M"]
["JUDAH","M"]
["JUDE","M"]
["JUJHAR","M"]
["JULES","M"]
["JULIAN","M"]
["JULIEN","M"]
["JULIO","M"]
["JULIUS","M"]
["JUN","M"]
["JUSTICE","M"]
["JUSTIN","M"]
["JUSTUS","M"]
["JUSTYN","M"]
["KA","M"]
["KABIR","M"]
["KACE","M"]
["KACEY","M"]
["KADE","M"]
["KADEN","M"]
["KADIN","M"]
["KADYN","M"]
["KAEDEN","M"]
["KAEL","M"]
["KAELAN","M"]
["KAELEN","M"]
["KAELIN","M"]
["KAI","M"]
["KAIDEN","M"]
["KAILEN","M"]
["KAINE","M"]
["KAIRO","M"]
["KAISON","M"]
["KAITO","M"]
["KAIUS","M"]
["KALAN","M"]
["KALE","M"]
["KALEB","M"]
["KALEM","M"]
["KALEN","M"]
["KALLEN","M"]
["KALUM","M"]
["KALVIN","M"]
["KAMAL","M"]
["KAMDEN","M"]
["KAMERON","M"]
["KANE","M"]
["KAORU","M"]
["KARAMVIR","M"]
["KARAN","M"]
["KARANVEER","M"]
["KARANVIR","M"]
["KARIM","M"]
["KARL","M"]
["KARMAN","M"]
["KARN","M"]
["KARNDEEP","M"]
["KARNVEER","M"]
["KARNVIR","M"]
["KARSEN","M"]
["KARSON","M"]
["KARSTEN","M"]
["KARTER","M"]
["KASEN","M"]
["KASEY","M"]
["KASH","M"]
["KASHTON","M"]
["KASON","M"]
["KASPER","M"]
["KATLIN","M"]
["KATSUMI","M"]
["KAVAN","M"]
["KAYA","M"]
["KAYCE","M"]
["KAYDEN","M"]
["KAYLAN","M"]
["KAYLE","M"]
["KAYLEB","M"]
["KAYSEN","M"]
["KAYSON","M"]
["KAZUO","M"]
["KEAGAN","M"]
["KEANAN","M"]
["KEANU","M"]
["KEATON","M"]
["KEEGAN","M"]
["KEELAN","M"]
["KEENAN","M"]
["KEERAT","M"]
["KEGAN","M"]
["KEIFER","M"]
["KEIR","M"]
["KEIRAN","M"]
["KEITH","M"]
["KELLAN","M"]
["KELLEN","M"]
["KELLY","M"]
["KELSEY","M"]
["KELTON","M"]
["KELVIN","M"]
["KEN","M"]
["KENAI","M"]
["KENDALL","M"]
["KENDRICK","M"]
["KENJI","M"]
["KENNEDY","M"]
["KENNETH","M"]
["KENNITH","M"]
["KENNY","M"]
["KENT","M"]
["KENTON","M"]
["KENYON","M"]
["KENZO","M"]
["KEON","M"]
["KERRY","M"]
["KESLER","M"]
["KEVAN","M"]
["KEVIN","M"]
["KHALID","M"]
["KHALIL","M"]
["KIAAN","M"]
["KIAN","M"]
["KIEFER","M"]
["KIEL","M"]
["KIERAN","M"]
["KIETH","M"]
["KILIAN","M"]
["KILLIAN","M"]
["KIM","M"]
["KIMBERLEY","M"]
["KIMBERLY","M"]
["KIMI","M"]
["KING","M"]
["KINGSLEY","M"]
["KINGSTON","M"]
["KIRAN","M"]
["KIRAT","M"]
["KIRBY","M"]
["KIRK","M"]
["KIRKLAND","M"]
["KIT","M"]
["KIYAN","M"]
["KIYOSHI","M"]
["KLAUS","M"]
["KNOX","M"]
["KOA","M"]
["KOBE","M"]
["KOBY","M"]
["KODA","M"]
["KODI","M"]
["KODIE","M"]
["KODY","M"]
["KOEN","M"]
["KOHEN","M"]
["KOHL","M"]
["KOLBY","M"]
["KOLE","M"]
["KOLT","M"]
["KOLTEN","M"]
["KOLTON","M"]
["KONNER","M"]
["KONNOR","M"]
["KONRAD","M"]
["KORBIN","M"]
["KOREY","M"]
["KORY","M"]
["KREW","M"]
["KRIS","M"]
["KRISH","M"]
["KRISHIV","M"]
["KRISTEN","M"]
["KRISTIAN","M"]
["KRISTIN","M"]
["KRISTOFER","M"]
["KRISTOFFER","M"]
["KRISTOPHER","M"]
["KRUZ","M"]
["KUNIO","M"]
["KURT","M"]
["KURTIS","M"]
["KYAN","M"]
["KYDEN","M"]
["KYE","M"]
["KYLAN","M"]
["KYLE","M"]
["KYLER","M"]
["KYLIAN","M"]
["KYLO","M"]
["KYRAN","M"]
["KYRIE","M"]
["KYRO","M"]
["KYSON","M"]
["LACHLAN","M"]
["LAINE","M"]
["LANCE","M"]
["LANDEN","M"]
["LANDO","M"]
["LANDON","M"]
["LANDYN","M"]
["LANE","M"]
["LARRY","M"]
["LARS","M"]
["LAURENCE","M"]
["LAURIE","M"]
["LAWRENCE","M"]
["LAWSON","M"]
["LAYNE","M"]
["LAYTON","M"]
["LEANDER","M"]
["LEDGER","M"]
["LEE","M"]
["LEGEND","M"]
["LEIF","M"]
["LEIGH","M"]
["LEIGHTON","M"]
["LELAND","M"]
["LENARD","M"]
["LENNARD","M"]
["LENNON","M"]
["LENNOX","M"]
["LEO","M"]
["LEON","M"]
["LEONARD","M"]
["LEONARDO","M"]
["LEONIDAS","M"]
["LEOPOLD","M"]
["LEROY","M"]
["LESLEY","M"]
["LESLIE","M"]
["LESTER","M"]
["LEV","M"]
["LEVI","M"]
["LEVON","M"]
["LEWIS","M"]
["LIAM","M"]
["LINCOLN","M"]
["LINDEN","M"]
["LINDSAY","M"]
["LINDSEY","M"]
["LINK","M"]
["LINKIN","M"]
["LINUS","M"]
["LIONEL","M"]
["LLEWYN","M"]
["LLOYD","M"]
["LOCHLAN","M"]
["LOGAN","M"]
["LOIC","M"]
["LOKI","M"]
["LON","M"]
["LONDON","M"]
["LONG","M"]
["LONNIE","M"]
["LONNY","M"]
["LOREN","M"]
["LORENZO","M"]
["LORNE","M"]
["LOUIE","M"]
["LOUIS","M"]
["LOYD","M"]
["LOÏC","M"]
["LUC","M"]
["LUCA","M"]
["LUCAS","M"]
["LUCCA","M"]
["LUCIAN","M"]
["LUCIANO","M"]
["LUCIEN","M"]
["LUCIUS","M"]
["LUIGI","M"]
["LUIS","M"]
["LUKA","M"]
["LUKAS","M"]
["LUKASZ","M"]
["LUKE","M"]
["LYALL","M"]
["LYLE","M"]
["LYNDEN","M"]
["LYNDON","M"]
["LYNN","M"]
["LYRIC","M"]
["LÉO","M"]
["MAC","M"]
["MACK","M"]
["MACKENZIE","M"]
["MADDEN","M"]
["MADDEX","M"]
["MADDOX","M"]
["MADISON","M"]
["MAGNUS","M"]
["MAKAI","M"]
["MAKAIO","M"]
["MAKSIM","M"]
["MALACHI","M"]
["MALAKAI","M"]
["MALCOLM","M"]
["MALEK","M"]
["MALIK","M"]
["MALIKAI","M"]
["MAN","M"]
["MANAV","M"]
["MANBIR","M"]
["MANDEEP","M"]
["MANDIP","M"]
["MANFRED","M"]
["MANINDER","M"]
["MANJINDER","M"]
["MANJIT","M"]
["MANJOT","M"]
["MANPREET","M"]
["MANRAJ","M"]
["MANROOP","M"]
["MANTAJ","M"]
["MANTEJ","M"]
["MANUEL","M"]
["MANVEER","M"]
["MANVIR","M"]
["MARC","M"]
["MARCEL","M"]
["MARCELLO","M"]
["MARCO","M"]
["MARCOS","M"]
["MARCUS","M"]
["MAREK","M"]
["MARIO","M"]
["MARK","M"]
["MARKO","M"]
["MARKUS","M"]
["MARLEY","M"]
["MARLIN","M"]
["MARLO","M"]
["MARLON","M"]
["MARSHALL","M"]
["MARTIN","M"]
["MARTY","M"]
["MARVIN","M"]
["MASAMI","M"]
["MASAO","M"]
["MASARU","M"]
["MASAYUKI","M"]
["MASEN","M"]
["MASON","M"]
["MASSIMO","M"]
["MATEO","M"]
["MATHEW","M"]
["MATHIAS","M"]
["MATHIEU","M"]
["MATHIS","M"]
["MATIAS","M"]
["MATIN","M"]
["MATT","M"]
["MATTEO","M"]
["MATTHEW","M"]
["MATTHIAS","M"]
["MATTIAS","M"]
["MATÉO","M"]
["MATÍAS","M"]
["MAURICE","M"]
["MAURIZIO","M"]
["MAURO","M"]
["MAVERICK","M"]
["MAX","M"]
["MAXIM","M"]
["MAXIME","M"]
["MAXIMILIAN","M"]
["MAXIMILIANO","M"]
["MAXIMILLIAN","M"]
["MAXIMUS","M"]
["MAXTON","M"]
["MAXWELL","M"]
["MAXX","M"]
["MAYSON","M"]
["MCKENZIE","M"]
["MEHAR","M"]
["MEHRAB","M"]
["MEHTAAB","M"]
["MEHTAB","M"]
["MELVILLE","M"]
["MELVIN","M"]
["MELVYN","M"]
["MEMPHIS","M"]
["MERLE","M"]
["MERRICK","M"]
["MERVIN","M"]
["MERVYN","M"]
["MICAH","M"]
["MICHAEL","M"]
["MICHAL","M"]
["MICHEAL","M"]
["MICHEL","M"]
["MICHELE","M"]
["MICKEY","M"]
["MIGUEL","M"]
["MIKAEL","M"]
["MIKAIL","M"]
["MIKE","M"]
["MIKEL","M"]
["MIKHAIL","M"]
["MILAN","M"]
["MILES","M"]
["MILLER","M"]
["MILO","M"]
["MILTON","M"]
["MINH","M"]
["MINORU","M"]
["MISCHA","M"]
["MITCHEL","M"]
["MITCHELL","M"]
["MITSUO","M"]
["MITSURU","M"]
["MIVAAN","M"]
["MOHAMED","M"]
["MOHAMMAD","M"]
["MOHAMMED","M"]
["MOHIT","M"]
["MOKSH","M"]
["MONTANA","M"]
["MONTE","M"]
["MONTGOMERY","M"]
["MONTY","M"]
["MORGAN","M"]
["MORRIS","M"]
["MOSES","M"]
["MUHAMMAD","M"]
["MUHAMMED","M"]
["MURRAY","M"]
["MUSA","M"]
["MUSTAFA","M"]
["MYLES","M"]
["MYLO","M"]
["MYRON","M"]
["NADAR","M"]
["NARINDER","M"]
["NASH","M"]
["NATE","M"]
["NATHAN","M"]
["NATHANAEL","M"]
["NATHANIAL","M"]
["NATHANIEL","M"]
["NATHEN","M"]
["NAVDEEP","M"]
["NAVJOT","M"]
["NAVRAJ","M"]
["NAWAB","M"]
["NEAL","M"]
["NEHEMIAH","M"]
["NEIL","M"]
["NELSON","M"]
["NEO","M"]
["NEVIN","M"]
["NIALL","M"]
["NIAM","M"]
["NICHOLAS","M"]
["NICK","M"]
["NICKLAUS","M"]
["NICKOLAS","M"]
["NICO","M"]
["NICOLA","M"]
["NICOLAS","M"]
["NIDHAAN","M"]
["NIGEL","M"]
["NIHAAL","M"]
["NIHAL","M"]
["NIKHIL","M"]
["NIKITA","M"]
["NIKLAS","M"]
["NIKO","M"]
["NIKOLA","M"]
["NIKOLAI","M"]
["NIKOLAS","M"]
["NIMA","M"]
["NIRVAAN","M"]
["NIRVAIR","M"]
["NISHAAN","M"]
["NISHAN","M"]
["NIVAAN","M"]
["NIXON","M"]
["NOAH","M"]
["NOBORU","M"]
["NOBUO","M"]
["NOEL","M"]
["NOLAN","M"]
["NORBERT","M"]
["NORMAN","M"]
["NOVA","M"]
["NOYAN","M"]
["OAKLAND","M"]
["OAKLEN","M"]
["OAKLEY","M"]
["OCEAN","M"]
["ODIN","M"]
["OISÍN","M"]
["OLAF","M"]
["OLIN","M"]
["OLIVER","M"]
["OLIVIER","M"]
["OLLIE","M"]
["OMAR","M"]
["ONYX","M"]
["OREN","M"]
["ORIN","M"]
["ORION","M"]
["ORLANDO","M"]
["ORSON","M"]
["OSAMU","M"]
["OSCAR","M"]
["OSKAR","M"]
["OSLO","M"]
["OTIS","M"]
["OTTO","M"]
["OWEN","M"]
["OZZIE","M"]
["OZZY","M"]
["PABLO","M"]
["PANAGIOTIS","M"]
["PAOLO","M"]
["PARAMVEER","M"]
["PARDEEP","M"]
["PARKER","M"]
["PARMINDER","M"]
["PARMVEER","M"]
["PARMVIR","M"]
["PARSA","M"]
["PARTAP","M"]
["PARTEEK","M"]
["PARVAAN","M"]
["PASCAL","M"]
["PASHA","M"]
["PATRICK","M"]
["PAUL","M"]
["PAULO","M"]
["PAVAN","M"]
["PAVANDEEP","M"]
["PAVEL","M"]
["PAWANDEEP","M"]
["PAXTON","M"]
["PAYTON","M"]
["PEARSON","M"]
["PERCY","M"]
["PERRY","M"]
["PETE","M"]
["PETER","M"]
["PEYTON","M"]
["PHILIP","M"]
["PHILIPPE","M"]
["PHILLIP","M"]
["PHOENIX","M"]
["PIERCE","M"]
["PIERRE","M"]
["PIETER","M"]
["PIETRO","M"]
["PORTER","M"]
["PRABHDEEP","M"]
["PRABHJOT","M"]
["PRABJOT","M"]
["PRESTON","M"]
["PRINCE","M"]
["PRINCETON","M"]
["PUNEET","M"]
["QUENTIN","M"]
["QUIN","M"]
["QUINCY","M"]
["QUINLAN","M"]
["QUINN","M"]
["QUINTEN","M"]
["QUINTIN","M"]
["QUINTON","M"]
["QUINTUS","M"]
["QUOC","M"]
["RABAB","M"]
["RADIN","M"]
["RAE","M"]
["RAFAEL","M"]
["RAFFAELE","M"]
["RAHIM","M"]
["RAHUL","M"]
["RAIDEN","M"]
["RAINE","M"]
["RAJAN","M"]
["RAJINDER","M"]
["RAJVEER","M"]
["RAJVIR","M"]
["RALPH","M"]
["RAMANDEEP","M"]
["RAMON","M"]
["RANBIR","M"]
["RANDAL","M"]
["RANDALL","M"]
["RANDEEP","M"]
["RANDELL","M"]
["RANDOLF","M"]
["RANDOLPH","M"]
["RANDY","M"]
["RANJIT","M"]
["RANVEER","M"]
["RANVIR","M"]
["RAPHAEL","M"]
["RAVDEEP","M"]
["RAVEN","M"]
["RAVI","M"]
["RAVINDER","M"]
["RAY","M"]
["RAYAAN","M"]
["RAYAN","M"]
["RAYDEN","M"]
["RAYLAN","M"]
["RAYMOND","M"]
["RAYNE","M"]
["RAYYAN","M"]
["REAGAN","M"]
["REECE","M"]
["REED","M"]
["REESE","M"]
["REGAN","M"]
["REGGIE","M"]
["REGINALD","M"]
["REHAAN","M"]
["REHMAT","M"]
["REID","M"]
["REIGN","M"]
["REILLY","M"]
["REMI","M"]
["REMINGTON","M"]
["REMY","M"]
["REN","M"]
["RENATO","M"]
["RENE","M"]
["RENZO","M"]
["REUBEN","M"]
["REX","M"]
["REYAN","M"]
["REYANSH","M"]
["REYNOLD","M"]
["RHETT","M"]
["RHODES","M"]
["RHYS","M"]
["RIAAN","M"]
["RIAN","M"]
["RIAZ","M"]
["RICARDO","M"]
["RICHARD","M"]
["RICK","M"]
["RICKEY","M"]
["RICKIE","M"]
["RICKY","M"]
["RIDGE","M"]
["RIGGS","M"]
["RIHAAN","M"]
["RILEY","M"]
["RIO","M"]
["RISHI","M"]
["RITCHIE","M"]
["RIVER","M"]
["ROAN","M"]
["ROB","M"]
["ROBBIE","M"]
["ROBBY","M"]
["ROBERT","M"]
["ROBERTO","M"]
["ROBIN","M"]
["ROBYN","M"]
["ROCCO","M"]
["ROCKY","M"]
["RODERICK","M"]
["RODGER","M"]
["RODNEY","M"]
["ROGER","M"]
["ROHAN","M"]
["ROHIN","M"]
["ROHIT","M"]
["ROLAND","M"]
["ROLF","M"]
["ROMAN","M"]
["ROME","M"]
["ROMEO","M"]
["RON","M"]
["RONALD","M"]
["RONAN","M"]
["RONIK","M"]
["RONIN","M"]
["RONNIE","M"]
["RONNY","M"]
["RORY","M"]
["ROSS","M"]
["ROWAN","M"]
["ROWEN","M"]
["ROY","M"]
["ROYCE","M"]
["RUBEN","M"]
["RUDOLF","M"]
["RUDOLPH","M"]
["RUDRA","M"]
["RUDRANSH","M"]
["RUDY","M"]
["RUHAAN","M"]
["RUI","M"]
["RUMI","M"]
["RUPERT","M"]
["RUPINDER","M"]
["RUSSEL","M"]
["RUSSELL","M"]
["RYAN","M"]
["RYATT","M"]
["RYDEN","M"]
["RYDER","M"]
["RYKER","M"]
["RYLAN","M"]
["RYLAND","M"]
["RYLEE","M"]
["RYLEN","M"]
["RYLEY","M"]
["RYLIE","M"]
["RYU","M"]
["SABAR","M"]
["SABASTIAN","M"]
["SABURO","M"]
["SACHA","M"]
["SAGAR","M"]
["SAGE","M"]
["SAHAJ","M"]
["SAHEJ","M"]
["SAHIB","M"]
["SAHIL","M"]
["SAJJAN","M"]
["SALEM","M"]
["SALVATORE","M"]
["SAM","M"]
["SAMAR","M"]
["SAMEER","M"]
["SAMI","M"]
["SAMIR","M"]
["SAMMY","M"]
["SAMRATH","M"]
["SAMSON","M"]
["SAMUEL","M"]
["SANDEEP","M"]
["SANDY","M"]
["SANJAY","M"]
["SANJEET","M"]
["SANJEEV","M"]
["SANTIAGO","M"]
["SANTINO","M"]
["SARTAJ","M"]
["SASHA","M"]
["SAUL","M"]
["SAWYER","M"]
["SAYED","M"]
["SCOTT","M"]
["SEAMUS","M"]
["SEAN","M"]
["SEANN","M"]
["SEBASTIAN","M"]
["SEBASTIEN","M"]
["SEHAJ","M"]
["SEHEJ","M"]
["SERGIO","M"]
["SETH","M"]
["SEVA","M"]
["SHAAN","M"]
["SHAE","M"]
["SHAHIL","M"]
["SHAKEEL","M"]
["SHAMUS","M"]
["SHANE","M"]
["SHANNON","M"]
["SHAUN","M"]
["SHAWN","M"]
["SHAY","M"]
["SHAYAN","M"]
["SHAYNE","M"]
["SHEA","M"]
["SHEHBAAZ","M"]
["SHELBY","M"]
["SHELDON","M"]
["SHEPHERD","M"]
["SHERMAN","M"]
["SHIA","M"]
["SHIGEO","M"]
["SHIGERU","M"]
["SHILOH","M"]
["SHIVAM","M"]
["SHOICHI","M"]
["SHOJI","M"]
["SHUBHDEEP","M"]
["SIDAK","M"]
["SIDNEY","M"]
["SILAS","M"]
["SILVANO","M"]
["SIMEON","M"]
["SIMON","M"]
["SIMRAN","M"]
["SIMRANJIT","M"]
["SINA","M"]
["SKY","M"]
["SKYE","M"]
["SKYLAR","M"]
["SKYLER","M"]
["SLADE","M"]
["SLOAN","M"]
["SMITH","M"]
["SOL","M"]
["SOLOMON","M"]
["SONNY","M"]
["SOREN","M"]
["SPENCER","M"]
["STACEY","M"]
["STACY","M"]
["STANLEY","M"]
["STEFAN","M"]
["STEFANO","M"]
["STELLAN","M"]
["STEPHAN","M"]
["STEPHANE","M"]
["STEPHEN","M"]
["STERLING","M"]
["STETSON","M"]
["STEVE","M"]
["STEVEN","M"]
["STEWART","M"]
["STRYDER","M"]
["STUART","M"]
["SUKHBIR","M"]
["SUKHDEEP","M"]
["SUKHJINDER","M"]
["SUKHJIT","M"]
["SUKHMAN","M"]
["SUKHPREET","M"]
["SUKHRAJ","M"]
["SUKHVINDER","M"]
["SULLIVAN","M"]
["SULTAN","M"]
["SUMEET","M"]
["SUNDEEP","M"]
["SUNNY","M"]
["SURAJ","M"]
["SUSUMU","M"]
["SUTTON","M"]
["SYDNEY","M"]
["SYED","M"]
["SYLAS","M"]
["SYLVESTER","M"]
["SÉBASTIEN","M"]
["TADAO","M"]
["TADASHI","M"]
["TAHA","M"]
["TAI","M"]
["TAIT","M"]
["TAIYO","M"]
["TAJ","M"]
["TAJINDER","M"]
["TAKASHI","M"]
["TAKESHI","M"]
["TALAN","M"]
["TALON","M"]
["TAMOTSU","M"]
["TANNER","M"]
["TANVEER","M"]
["TANVIR","M"]
["TARAN","M"]
["TARIQ","M"]
["TATE","M"]
["TATSUO","M"]
["TATUM","M"]
["TAVEN","M"]
["TAVIAN","M"]
["TAVIN","M"]
["TAVIS","M"]
["TAVISH","M"]
["TAYLER","M"]
["TAYLOR","M"]
["TEAGAN","M"]
["TED","M"]
["TEDDY","M"]
["TEGAN","M"]
["TEGH","M"]
["TEGHBIR","M"]
["TEJAS","M"]
["TEJINDER","M"]
["TENZIN","M"]
["TEO","M"]
["TERANCE","M"]
["TERENCE","M"]
["TERRANCE","M"]
["TERRELL","M"]
["TERRENCE","M"]
["TERRY","M"]
["TERUO","M"]
["TETSUO","M"]
["THATCHER","M"]
["THEO","M"]
["THEODOR","M"]
["THEODORE","M"]
["THEOREN","M"]
["THERON","M"]
["THIAGO","M"]
["THOMAS","M"]
["THOR","M"]
["THORIN","M"]
["THÉODORE","M"]
["TIAGO","M"]
["TIBERIUS","M"]
["TIGER","M"]
["TIM","M"]
["TIMMY","M"]
["TIMOTHY","M"]
["TITAN","M"]
["TITUS","M"]
["TOBIAS","M"]
["TOBIN","M"]
["TOBY","M"]
["TOD","M"]
["TODD","M"]
["TOM","M"]
["TOMAS","M"]
["TOMMY","M"]
["TOMÁS","M"]
["TONY","M"]
["TORIN","M"]
["TORY","M"]
["TOSHIO","M"]
["TRACE","M"]
["TRACEY","M"]
["TRACY","M"]
["TRAVIS","M"]
["TRE","M"]
["TRENT","M"]
["TRENTON","M"]
["TREVER","M"]
["TREVOR","M"]
["TREY","M"]
["TREYTON","M"]
["TRIPP","M"]
["TRISTAN","M"]
["TRISTEN","M"]
["TRISTIAN","M"]
["TRISTIN","M"]
["TRISTON","M"]
["TRISTYN","M"]
["TROY","M"]
["TRUMAN","M"]
["TRYSTAN","M"]
["TSUTOMU","M"]
["TSUYOSHI","M"]
["TUCKER","M"]
["TURNER","M"]
["TY","M"]
["TYCE","M"]
["TYE","M"]
["TYLER","M"]
["TYLOR","M"]
["TYREL","M"]
["TYRELL","M"]
["TYRESE","M"]
["TYRONE","M"]
["TYSEN","M"]
["TYSON","M"]
["TYUS","M"]
["UDAY","M"]
["UDAYVEER","M"]
["UDHAM","M"]
["UMAR","M"]
["UZAIR","M"]
["VAN","M"]
["VANCE","M"]
["VARDAAN","M"]
["VAUGHN","M"]
["VEER","M"]
["VERN","M"]
["VERNE","M"]
["VERNON","M"]
["VIAAN","M"]
["VICTOR","M"]
["VIHAAN","M"]
["VIKRAM","M"]
["VIKTOR","M"]
["VINCE","M"]
["VINCENT","M"]
["VINCENZO","M"]
["VIRAAJ","M"]
["VIRAJ","M"]
["VIRGIL","M"]
["VISHAL","M"]
["VIVAAN","M"]
["VLADIMIR","M"]
["WADE","M"]
["WAI","M"]
["WALKER","M"]
["WALLACE","M"]
["WALTER","M"]
["WARD","M"]
["WARIS","M"]
["WARREN","M"]
["WATSON","M"]
["WAYLON","M"]
["WAYNE","M"]
["WELLS","M"]
["WENDELL","M"]
["WERNER","M"]
["WES","M"]
["WESLEY","M"]
["WEST","M"]
["WESTEN","M"]
["WESTIN","M"]
["WESTLEY","M"]
["WESTON","M"]
["WESTYN","M"]
["WILBERT","M"]
["WILDER","M"]
["WILFRED","M"]
["WILFRID","M"]
["WILL","M"]
["WILLARD","M"]
["WILLEM","M"]
["WILLIAM","M"]
["WILLIE","M"]
["WILSON","M"]
["WING","M"]
["WINSON","M"]
["WINSTON","M"]
["WOLF","M"]
["WOLFGANG","M"]
["WREN","M"]
["WYATT","M"]
["WYLDER","M"]
["WYLIE","M"]
["WYNN","M"]
["XANDER","M"]
["XAVIER","M"]
["YAHYA","M"]
["YASUO","M"]
["YI","M"]
["YOSHIO","M"]
["YOUSEF","M"]
["YOUSIF","M"]
["YOUSSEF","M"]
["YUKIO","M"]
["YUSUF","M"]
["YUTAKA","M"]
["YUVAAN","M"]
["YUVRAJ","M"]
["ZAC","M"]
["ZACH","M"]
["ZACHARIAH","M"]
["ZACHARY","M"]
["ZACHERY","M"]
["ZACK","M"]
["ZACKARY","M"]
["ZACKERY","M"]
["ZAID","M"]
["ZAIDEN","M"]
["ZAIN","M"]
["ZAKARIA","M"]
["ZAKARIYA","M"]
["ZAKARY","M"]
["ZANDER","M"]
["ZANE","M"]
["ZAVIER","M"]
["ZAYAN","M"]
["ZAYD","M"]
["ZAYDEN","M"]
["ZAYN","M"]
["ZAYNE","M"]
["ZEKE","M"]
["ZEPHYR","M"]
["ZEV","M"]
["ZI","M"]
["ZIAN","M"]
["ZIGGY","M"]
["ZION","M"]
["ZOHAN","M"]
["ZOLTAN","M"]
["ZORA","M"]
["ZORAVAR","M"]
["ZORAWAR","M"]

{"sheet":"Gen_Corr_Target_Corr","index":3,"n_rows":19,"n_cols":16,"rows_kept":19,"cut":false,"hidden":false,"merged":[[2,13,2,15],[3,14,3,15]]}
[1,0.8,0.4,0]
[{"$f":"INDEX($A$1:$D$4,COLUMN(),ROW())","v":0.8},1,0.3,-0.2]
[{"$f":"INDEX($A$1:$D$4,COLUMN(),ROW())","v":0.4},{"$f":"INDEX($A$1:$D$4,COLUMN(),ROW())","v":0.3},1,0.1,null,null,null,null,null,null,null,null,null,"Worksheet Formulas"]
[{"$f":"INDEX($A$1:$D$4,COLUMN(),ROW())","v":0},{"$f":"INDEX($A$1:$D$4,COLUMN(),ROW())","v":-0.2},{"$f":"INDEX($A$1:$D$4,COLUMN(),ROW())","v":0.1},1,null,null,null,null,null,null,null,null,null,"Range","Formula"]
[null,null,null,null,null,null,null,null,null,null,null,null,null,"A7:D10","A7",{"$f":"sbGetCell(INDIRECT(O5),41)","v":"=CORREL(INDEX(Gen_Corr_Output_Series!$A$1:$D$20,,ROW()-6),INDEX(Gen_Corr_Output_Series!$A$1:$D$20,,COLUMN()))"}]
["Result correlation",null,null,null,null,null,null,null,null,null,null,null,null,"A13","A13",{"$f":"sbGetCell(INDIRECT(O6),41)","v":"=A7 - A1"}]
[{"$f":"CORREL(INDEX(Gen_Corr_Output_Series!$A$1:$D$20,,ROW()-6),INDEX(Gen_Corr_Output_Series!$A$1:$D$20,,COLUMN()))","v":1.0000000000000002},{"$f":"CORREL(INDEX(Gen_Corr_Output_Series!$A$1:$D$20,,ROW()-6),INDEX(Gen_Corr_Output_Series!$A$1:$D$20,,COLUMN()))","v":0.78997566791930784},{"$f":"CORREL(INDEX(Gen_Corr_Output_Series!$A$1:$D$20,,ROW()-6),INDEX(Gen_Corr_Output_Series!$A$1:$D$20,,COLUMN()))","v":0.38534184682552608},{"$f":"CORREL(INDEX(Gen_Corr_Output_Series!$A$1:$D$20,,ROW()-6),INDEX(Gen_Corr_Output_Series!$A$1:$D$20,,COLUMN()))","v":2.4390648211522273E-2},null,null,null,null,null,null,null,null,null,"A19","A19",{"$f":"sbGetCell(INDIRECT(O7),41)","v":"=MAX(ABS(A13:D16))"}]
[{"$f":"CORREL(INDEX(Gen_Corr_Output_Series!$A$1:$D$20,,ROW()-6),INDEX(Gen_Corr_Output_Series!$A$1:$D$20,,COLUMN()))","v":0.78997566791930784},{"$f":"CORREL(INDEX(Gen_Corr_Output_Series!$A$1:$D$20,,ROW()-6),INDEX(Gen_Corr_Output_Series!$A$1:$D$20,,COLUMN()))","v":1},{"$f":"CORREL(INDEX(Gen_Corr_Output_Series!$A$1:$D$20,,ROW()-6),INDEX(Gen_Corr_Output_Series!$A$1:$D$20,,COLUMN()))","v":0.30725633045429923},{"$f":"CORREL(INDEX(Gen_Corr_Output_Series!$A$1:$D$20,,ROW()-6),INDEX(Gen_Corr_Output_Series!$A$1:$D$20,,COLUMN()))","v":-0.19452046011968602}]
[{"$f":"CORREL(INDEX(Gen_Corr_Output_Series!$A$1:$D$20,,ROW()-6),INDEX(Gen_Corr_Output_Series!$A$1:$D$20,,COLUMN()))","v":0.38534184682552608},{"$f":"CORREL(INDEX(Gen_Corr_Output_Series!$A$1:$D$20,,ROW()-6),INDEX(Gen_Corr_Output_Series!$A$1:$D$20,,COLUMN()))","v":0.30725633045429923},{"$f":"CORREL(INDEX(Gen_Corr_Output_Series!$A$1:$D$20,,ROW()-6),INDEX(Gen_Corr_Output_Series!$A$1:$D$20,,COLUMN()))","v":1},{"$f":"CORREL(INDEX(Gen_Corr_Output_Series!$A$1:$D$20,,ROW()-6),INDEX(Gen_Corr_Output_Series!$A$1:$D$20,,COLUMN()))","v":7.3247371925240695E-2},null,"How to generate correlated columns of numbers:"]
[{"$f":"CORREL(INDEX(Gen_Corr_Output_Series!$A$1:$D$20,,ROW()-6),INDEX(Gen_Corr_Output_Series!$A$1:$D$20,,COLUMN()))","v":2.4390648211522273E-2},{"$f":"CORREL(INDEX(Gen_Corr_Output_Series!$A$1:$D$20,,ROW()-6),INDEX(Gen_Corr_Output_Series!$A$1:$D$20,,COLUMN()))","v":-0.19452046011968602},{"$f":"CORREL(INDEX(Gen_Corr_Output_Series!$A$1:$D$20,,ROW()-6),INDEX(Gen_Corr_Output_Series!$A$1:$D$20,,COLUMN()))","v":7.3247371925240695E-2},{"$f":"CORREL(INDEX(Gen_Corr_Output_Series!$A$1:$D$20,,ROW()-6),INDEX(Gen_Corr_Output_Series!$A$1:$D$20,,COLUMN()))","v":1.0000000000000002},null,"1. Enter your input series into sheet Gen_Corr_Input_Series"]
[null,null,null,null,null,"2. Enter the desired target correlation matrix into this sheet, top left corner"]
["Correlation difference",null,null,null,null,"3. Press the button \"Generate correlated data\""]
[{"$f":"A7 - A1","v":0},{"$f":"B7 - B1","v":-1.00243320806922E-2},{"$f":"C7 - C1","v":-1.4658153174473942E-2},{"$f":"D7 - D1","v":2.4390648211522273E-2},null,"Adjust constant CMaxIter in module TestCorrelatedNumbers if necessary"]
[{"$f":"A8 - A2","v":-1.00243320806922E-2},{"$f":"B8 - B2","v":0},{"$f":"C8 - C2","v":7.2563304542992424E-3},{"$f":"D8 - D2","v":5.4795398803139939E-3},null,"Re-press button if your largest absolute error is too high"]
[{"$f":"A9 - A3","v":-1.4658153174473942E-2},{"$f":"B9 - B3","v":7.2563304542992424E-3},{"$f":"C9 - C3","v":0},{"$f":"D9 - D3","v":-2.675262807475931E-2},null,"Finally use correlated numbers in sheet Gen_Corr_Output_Series"]
[{"$f":"A10 - A4","v":2.4390648211522273E-2},{"$f":"B10 - B4","v":5.4795398803139939E-3},{"$f":"C10 - C4","v":-2.675262807475931E-2},{"$f":"D10 - D4","v":0}]
[]
["Largest absolute error"]
[{"$f":"MAX(ABS(A13:D16))","v":2.675262807475931E-2}]

{"sheet":"Gen_Corr_Input_Series","index":4,"n_rows":20,"n_cols":4,"rows_kept":20,"cut":false,"hidden":false,"merged":[]}
[123567,44770,15934,13273]
[126109,45191,16839,15406]
[138713,47453,17233,16706]
[139016,47941,17265,16891]
[152213,49345,17620,18821]
[153224,49420,17859,19569]
[153407,50686,20804,20166]
[155716,52931,21110,20796]
[155780,54010,22728,20968]
[161678,57346,24072,21178]
[161805,57685,25198,23236]
[167447,57698,25393,23375]
[170737,58380,30357,24019]
[171592,60948,30779,24785]
[178881,66972,32634,25000]
[181678,68053,33117,26754]
[184381,70592,35248,27079]
[206940,72243,36656,30136]
[217092,86685,38483,30757]
[240935,87138,39483,35108]

{"sheet":"Gen_Corr_Output_Series","index":5,"n_rows":20,"n_cols":4,"rows_kept":20,"cut":false,"hidden":false,"merged":[]}
[123567,44770,17859,20796]
[126109,45191,15934,23375]
[138713,50686,17620,20968]
[139016,47453,17233,15406]
[152213,49345,35248,30757]
[153224,66972,25198,24019]
[153407,49420,17265,19569]
[155716,52931,38483,23236]
[155780,57685,25393,21178]
[161678,60948,21110,35108]
[161805,57698,36656,16706]
[167447,57346,16839,18821]
[170737,47941,39483,30136]
[171592,58380,20804,26754]
[178881,87138,32634,16891]
[181678,54010,24072,27079]
[184381,68053,33117,13273]
[206940,72243,22728,25000]
[217092,70592,30357,24785]
[240935,86685,30779,20166]